{"text_format":"1","workbook":"xlsx","n_sheets":5,"sheets":["Business Group Provisioning","LOA Form","Order Inventory","Links of Interest","Do Not Change!"],"not_rendered":{"charts":0,"images":1,"macros":1,"external_links":0,"defined_names":24,"comments":1,"pivot_tables":0},"unopened":[],"bounds":{"document_bytes":16777216,"sheet_cells":100000,"rows_first":2000,"rows_last":500,"rows_between":2000,"halvings":0,"cell_chars":16384,"cell_head_chars":4096},"cells_cut":0,"cells_raw":0,"read":"whole","date_system":"1900"}

{"sheet":"Business Group Provisioning","index":0,"n_rows":621,"n_cols":42,"rows_kept":621,"cut":false,"hidden":false,"merged":[[8,2,8,3],[9,2,9,3]]}
[]
[]
[]
[]
[]
["BUSINESS GROUP PROVISIONING ORDER"]
["v5.0","Important - This provisioning spreadsheet optimized for use with Excel 2010 with macro support enabled - use that version or newer.  DO NOT DELETE LINES!",null,null,null,null,null,null,"Hover over red \"comment triangle\" on each field for guidence."]
["GENERAL BUSINESS GROUP DATA"]
[null,"YOUR COMPANY NAME:"," "]
[null,"CUSTOMER COMPANY NAME:"," "]
[]
[]
[null,"SIP AUTH PASSWORD:"]
[null,"CAPACITY LIMITS: "]
[null,"ORDER TYPE:","Production"]
[null,"SIP DOMAIN:","meta.spacecoast.io"]
[]
["LINE PROVISIONING DATA"]
["ACTION","TN/PTN/TFN","TN SOURCE","EXTENSION","USER / USE NAME","CNAM","LINE USAGE","VOICEMAIL","SPOOF","TIME ZONE","CALL APPEARANCES","FORK LINE?","HARDWARE MODEL","PHONE MAC","CALL RECORDING","E911 REQUIRED?","WP/411 REQUESTED?","NOTES","VOICEMAIL PIN","COMMPORTAL PASSWORD","UNAVAILABLE CALL FORWARDING","SMS","CLICK-TO-DIAL","E911 NAME","E911 ADDRESS 1","E911 ADDRESS 2","E911 CITY","E911 STATE","E911 ZIP","WP411 LISTING","WP411 HOUSE NUMBER","WP411 STREET NAME","WP411 ADDRESS 2","WP411 CITY","WP411 STATE","WP411 ZIP","BUSINESS NAME","REQUESTED FOC","AUTHORIZING NAME","BTN","ACCOUNT NUMBER"]
[null,null,null,null,null,{"$f":"LEFT(E20,15)","v":""},null,{"$f":"IFERROR(INDEX(VM_Type,MATCH(G20,Line_Type,0)),\"\")","v":""},null,"Eastern",null,null,null,null,null,"Yes",null,null,{"$f":"IF(OR(H20=\"PoVM\",H20=\"CommPortal\",H20=\"CommPortal No VM\",H20=\"Shared VM (Master)\",H20=\"Shared VM (Slave)\"),(MID(B20,10,1)&MID(B20,9,1)&MID(B20,8,1)&MID(B20,7,1)),\"\")","v":""},{"$f":"IF(OR(H20=\"CommPortal\",H20=\"CommPortal No VM\"),(LEFT(Customer_Company_Name,2)&\"$\"&S20&\"!\"),\"\")","v":""},null,null,null,null,null,null,null,null,null,null,null,null,null,null,null,null,null,null,null,null,null,{"$f":"1","v":1}]
[null,null,null,null,null,"",null,null,null,null,null,null,null,null,null,null,null,null,{"$f":"IF(OR(H21=\"PoVM\",H21=\"CommPortal\",H21=\"CommPortal No VM\",H21=\"Shared VM (Master)\",H21=\"Shared VM (Slave)\"),(MID(B21,10,1)&MID(B21,9,1)&MID(B21,8,1)&MID(B21,7,1)),\"\")","v":""},"",null,null,null,{"$f":"IF(P21=\"Yes\",Customer_Company_Name,\"\")","v":""},null,null,null,null,null,{"$f":"IF(Q21=\"Yes\",Customer_Company_Name,\"\")","v":""},null,null,null,null,null,null,null,null,null,null,null,1]
[null,null,null,null,null,"",null,null,null,null,null,null,null,null,null,null,null,null,"","",null,null,null,"",null,null,null,null,null,"",null,null,null,null,null,null,null,null,null,null,null,1]
[null,null,null,null,null,"",null,null,null,null,null,null,null,null,null,null,null,null,"","",null,null,null,"",null,null,null,null,null,"",null,null,null,null,null,null,null,null,null,null,null,1]
[null,null,null,null,null,"",null,null,null,null,null,null,null,null,null,null,null,null,"","",null,null,null,"",null,null,null,null,null,"",null,null,null,null,null,null,null,null,null,null,null,1]
[null,null,null,null,null,"",null,"",null,null,null,null,null,null,null,null,null,null,"","",null,null,null,"",null,null,null,null,null,"",null,null,null,null,null,null,null,null,null,null,null,1]
[null,null,null,null,null,"",null,"",null,null,null,null,null,null,null,null,null,null,"","",null,null,null,"",null,null,null,null,null,"",null,null,null,null,null,null,null,null,null,null,null,1]
[null,null,null,null,null,"",null,"",null,null,null,null,null,null,null,null,null,null,"","",null,null,null,"",null,null,null,null,null,"",null,null,null,null,null,null,null,null,null,null,null,1]
[null,null,null,null,null,"",null,"",null,null,null,null,null,null,null,null,null,null,"","",null,null,null,"",null,null,null,null,null,"",null,null,null,null,null,null,null,null,null,null,null,1]
[null,null,null,null,null,"",null,"",null,null,null,null,null,null,null,null,null,null,"","",null,null,null,"",null,null,null,null,null,"",null,null,null,null,null,null,null,null,null,null,null,1]
[null,null,null,null,null,"",null,"",null,null,null,null,null,null,null,null,null,null,"","",null,null,null,"",null,null,null,null,null,"",null,null,null,null,null,null,null,null,null,null,null,1]
[null,null,null,null,null,"",null,"",null,null,null,null,null,null,null,null,null,null,"","",null,null,null,"",null,null,null,null,null,"",null,null,null,null,null,null,null,null,null,null,null,1]
[null,null,null,null,null,"",null,"",null,null,null,null,null,null,null,null,null,null,"","",null,null,null,"",null,null,null,null,null,"",null,null,null,null,null,null,null,null,null,null,null,1]
[null,null,null,null,null,"",null,"",null,null,null,null,null,null,null,null,null,null,"","",null,null,null,"",null,null,null,null,null,"",null,null,null,null,null,null,null,null,null,null,null,1]
[null,null,null,null,null,"",null,"",null,null,null,null,null,null,null,null,null,null,"","",null,null,null,"",null,null,null,null,null,"",null,null,null,null,null,null,null,null,null,null,null,1]
[null,null,null,null,null,"",null,"",null,null,null,null,null,null,null,null,null,null,"","",null,null,null,"",null,null,null,null,null,"",null,null,null,null,null,null,null,null,null,null,null,1]
[null,null,null,null,null,"",null,"",null,null,null,null,null,null,null,null,null,null,"","",null,null,null,"",null,null,null,null,null,"",null,null,null,null,null,null,null,null,null,null,null,1]
[null,null,null,null,null,"",null,"",null,null,null,null,null,null,null,null,null,null,"","",null,null,null,"",null,null,null,null,null,"",null,null,null,null,null,null,null,null,null,null,null,1]
[null,null,null,null,null,"",null,"",null,null,null,null,null,null,null,null,null,null,"","",null,null,null,"",null,null,null,null,null,"",null,null,null,null,null,null,null,null,null,null,null,1]
[null,null,null,null,null,"",null,"",null,null,null,null,null,null,null,null,null,null,"","",null,null,null,"",null,null,null,null,null,"",null,null,null,null,null,null,null,null,null,null,null,1]
[null,null,null,null,null,"",null,"",null,null,null,null,null,null,null,null,null,null,"","",null,null,null,"",null,null,null,null,null,"",null,null,null,null,null,null,null,null,null,null,null,1]
[null,null,null,null,null,"",null,"",null,null,null,null,null,null,null,null,null,null,"","",null,null,null,"",null,null,null,null,null,"",null,null,null,null,null,null,null,null,null,null,null,1]
[null,null,null,null,null,"",null,"",null,null,null,null,null,null,null,null,null,null,"","",null,null,null,"",null,null,null,null,null,"",null,null,null,null,null,null,null,null,null,null,null,1]
[null,null,null,null,null,"",null,"",null,null,null,null,null,null,null,null,null,null,"","",null,null,null,"",null,null,null,null,null,"",null,null,null,null,null,null,null,null,null,null,null,1]
[null,null,null,null,null,"",null,"",null,null,null,null,null,null,null,null,null,null,"","",null,null,null,"",null,null,null,null,null,"",null,null,null,null,null,null,null,null,null,null,null,1]
[null,null,null,null,null,"",null,"",null,null,null,null,null,null,null,null,null,null,"","",null,null,null,"",null,null,null,null,null,"",null,null,null,null,null,null,null,null,null,null,null,1]
[null,null,null,null,null,"",null,"",null,null,null,null,null,null,null,null,null,null,"","",null,null,null,"",null,null,null,null,null,"",null,null,null,null,null,null,null,null,null,null,null,1]
[null,null,null,null,null,"",null,"",null,null,null,null,null,null,null,null,null,null,"","",null,null,null,"",null,null,null,null,null,"",null,null,null,null,null,null,null,null,null,null,null,1]
[null,null,null,null,null,"",null,"",null,null,null,null,null,null,null,null,null,null,"","",null,null,null,"",null,null,null,null,null,"",null,null,null,null,null,null,null,null,null,null,null,1]
[null,null,null,null,null,"",null,"",null,null,null,null,null,null,null,null,null,null,"","",null,null,null,"",null,null,null,null,null,"",null,null,null,null,null,null,null,null,null,null,null,1]
[null,null,null,null,null,"",null,"",null,null,null,null,null,null,null,null,null,null,"","",null,null,null,"",null,null,null,null,null,"",null,null,null,null,null,null,null,null,null,null,null,1]
[null,null,null,null,null,"",null,"",null,null,null,null,null,null,null,null,null,null,"","",null,null,null,"",null,null,null,null,null,"",null,null,null,null,null,null,null,null,null,null,null,1]
[null,null,null,null,null,"",null,"",null,null,null,null,null,null,null,null,null,null,"","",null,null,null,"",null,null,null,null,null,"",null,null,null,null,null,null,null,null,null,null,null,1]
[null,null,null,null,null,"",null,"",null,null,null,null,null,null,null,null,null,null,"","",null,null,null,"",null,null,null,null,null,"",null,null,null,null,null,null,null,null,null,null,null,1]
[null,null,null,null,null,"",null,"",null,null,null,null,null,null,null,null,null,null,"","",null,null,null,"",null,null,null,null,null,"",null,null,null,null,null,null,null,null,null,null,null,1]
[null,null,null,null,null,"",null,"",null,null,null,null,null,null,null,null,null,null,"","",null,null,null,"",null,null,null,null,null,"",null,null,null,null,null,null,null,null,null,null,null,1]
[null,null,null,null,null,"",null,"",null,null,null,null,null,null,null,null,null,null,"","",null,null,null,"",null,null,null,null,null,"",null,null,null,null,null,null,null,null,null,null,null,1]
[null,null,null,null,null,"",null,"",null,null,null,null,null,null,null,null,null,null,"","",null,null,null,"",null,null,null,null,null,"",null,null,null,null,null,null,null,null,null,null,null,1]
[null,null,null,null,null,"",null,"",null,null,null,null,null,null,null,null,null,null,"","",null,null,null,"",null,null,null,null,null,"",null,null,null,null,null,null,null,null,null,null,null,1]
[null,null,null,null,null,"",null,"",null,null,null,null,null,null,null,null,null,null,"","",null,null,null,"",null,null,null,null,null,"",null,null,null,null,null,null,null,null,null,null,null,1]
[null,null,null,null,null,"",null,"",null,null,null,null,null,null,null,null,null,null,"","",null,null,null,"",null,null,null,null,null,"",null,null,null,null,null,null,null,null,null,null,null,1]
[null,null,null,null,null,"",null,"",null,null,null,null,null,null,null,null,null,null,"","",null,null,null,"",null,null,null,null,null,"",null,null,null,null,null,null,null,null,null,null,null,1]
[null,null,null,null,null,"",null,"",null,null,null,null,null,null,null,null,null,null,"","",null,null,null,"",null,null,null,null,null,"",null,null,null,null,null,null,null,null,null,null,null,1]
[null,null,null,null,null,"",null,"",null,null,null,null,null,null,null,null,null,null,"","",null,null,null,"",null,null,null,null,null,"",null,null,null,null,null,null,null,null,null,null,null,1]
[null,null,null,null,null,"",null,"",null,null,null,null,null,null,null,null,null,null,"","",null,null,null,"",null,null,null,null,null,"",null,null,null,null,null,null,null,null,null,null,null,1]
[null,null,null,null,null,"",null,"",null,null,null,null,null,null,null,null,null,null,"","",null,null,null,"",null,null,null,null,null,"",null,null,null,null,null,null,null,null,null,null,null,1]
[null,null,null,null,null,"",null,"",null,null,null,null,null,null,null,null,null,null,"","",null,null,null,"",null,null,null,null,null,"",null,null,null,null,null,null,null,null,null,null,null,1]
[null,null,null,null,null,"",null,"",null,null,null,null,null,null,null,null,null,null,"","",null,null,null,"",null,null,null,null,null,"",null,null,null,null,null,null,null,null,null,null,null,1]
[null,null,null,null,null,"",null,"",null,null,null,null,null,null,null,null,null,null,"","",null,null,null,"",null,null,null,null,null,"",null,null,null,null,null,null,null,null,null,null,null,1]
[null,null,null,null,null,"",null,"",null,null,null,null,null,null,null,null,null,null,"","",null,null,null,"",null,null,null,null,null,"",null,null,null,null,null,null,null,null,null,null,null,1]
[null,null,null,null,null,"",null,"",null,null,null,null,null,null,null,null,null,null,"","",null,null,null,"",null,null,null,null,null,"",null,null,null,null,null,null,null,null,null,null,null,1]
[null,null,null,null,null,"",null,"",null,null,null,null,null,null,null,null,null,null,"","",null,null,null,"",null,null,null,null,null,"",null,null,null,null,null,null,null,null,null,null,null,1]
[null,null,null,null,null,"",null,"",null,null,null,null,null,null,null,null,null,null,"","",null,null,null,"",null,null,null,null,null,"",null,null,null,null,null,null,null,null,null,null,null,1]
[null,null,null,null,null,"",null,"",null,null,null,null,null,null,null,null,null,null,"","",null,null,null,"",null,null,null,null,null,"",null,null,null,null,null,null,null,null,null,null,null,1]
[null,null,null,null,null,"",null,"",null,null,null,null,null,null,null,null,null,null,"","",null,null,null,"",null,null,null,null,null,"",null,null,null,null,null,null,null,null,null,null,null,1]
[null,null,null,null,null,"",null,"",null,null,null,null,null,null,null,null,null,null,"","",null,null,null,"",null,null,null,null,null,"",null,null,null,null,null,null,null,null,null,null,null,1]
[null,null,null,null,null,"",null,"",null,null,null,null,null,null,null,null,null,null,"","",null,null,null,"",null,null,null,null,null,"",null,null,null,null,null,null,null,null,null,null,null,1]
[null,null,null,null,null,"",null,"",null,null,null,null,null,null,null,null,null,null,"","",null,null,null,"",null,null,null,null,null,"",null,null,null,null,null,null,null,null,null,null,null,1]
[null,null,null,null,null,"",null,"",null,null,null,null,null,null,null,null,null,null,"","",null,null,null,"",null,null,null,null,null,"",null,null,null,null,null,null,null,null,null,null,null,1]
[null,null,null,null,null,"",null,"",null,null,null,null,null,null,null,null,null,null,"","",null,null,null,"",null,null,null,null,null,"",null,null,null,null,null,null,null,null,null,null,null,1]
[null,null,null,null,null,"",null,"",null,null,null,null,null,null,null,null,null,null,"","",null,null,null,"",null,null,null,null,null,"",null,null,null,null,null,null,null,null,null,null,null,1]
[null,null,null,null,null,"",null,"",null,null,null,null,null,null,null,null,null,null,"","",null,null,null,"",null,null,null,null,null,"",null,null,null,null,null,null,null,null,null,null,null,1]
[null,null,null,null,null,"",null,"",null,null,null,null,null,null,null,null,null,null,"","",null,null,null,"",null,null,null,null,null,"",null,null,null,null,null,null,null,null,null,null,null,1]
[null,null,null,null,null,"",null,"",null,null,null,null,null,null,null,null,null,null,"","",null,null,null,"",null,null,null,null,null,"",null,null,null,null,null,null,null,null,null,null,null,1]
[null,null,null,null,null,{"$f":"LEFT(E84,15)","v":""},null,{"$f":"IFERROR(INDEX(VM_Type,MATCH(G84,Line_Type,0)),\"\")","v":""},null,null,null,null,null,null,null,null,null,null,"",{"$f":"IF(OR(H84=\"CommPortal\",H84=\"CommPortal No VM\"),(LEFT(Customer_Company_Name,2)&\"$\"&S84&\"!\"),\"\")","v":""},null,null,null,{"$f":"IF(P84=\"Yes\",Customer_Company_Name,\"\")","v":""},null,null,null,null,null,{"$f":"IF(Q84=\"Yes\",Customer_Company_Name,\"\")","v":""},null,null,null,null,null,null,null,null,null,null,null,1]
[null,null,null,null,null,"",null,"",null,null,null,null,null,null,null,null,null,null,{"$f":"IF(OR(H85=\"PoVM\",H85=\"CommPortal\",H85=\"CommPortal No VM\",H85=\"Shared VM (Master)\",H85=\"Shared VM (Slave)\"),(MID(B85,10,1)&MID(B85,9,1)&MID(B85,8,1)&MID(B85,7,1)),\"\")","v":""},"",null,null,null,"",null,null,null,null,null,"",null,null,null,null,null,null,null,null,null,null,null,1]
[null,null,null,null,null,"",null,"",null,null,null,null,null,null,null,null,null,null,"","",null,null,null,"",null,null,null,null,null,"",null,null,null,null,null,null,null,null,null,null,null,1]
[null,null,null,null,null,"",null,"",null,null,null,null,null,null,null,null,null,null,"","",null,null,null,"",null,null,null,null,null,"",null,null,null,null,null,null,null,null,null,null,null,1]
[null,null,null,null,null,"",null,"",null,null,null,null,null,null,null,null,null,null,"","",null,null,null,"",null,null,null,null,null,"",null,null,null,null,null,null,null,null,null,null,null,1]
[null,null,null,null,null,"",null,"",null,null,null,null,null,null,null,null,null,null,"","",null,null,null,"",null,null,null,null,null,"",null,null,null,null,null,null,null,null,null,null,null,1]
[null,null,null,null,null,"",null,"",null,null,null,null,null,null,null,null,null,null,"","",null,null,null,"",null,null,null,null,null,"",null,null,null,null,null,null,null,null,null,null,null,1]
[null,null,null,null,null,"",null,"",null,null,null,null,null,null,null,null,null,null,"","",null,null,null,"",null,null,null,null,null,"",null,null,null,null,null,null,null,null,null,null,null,1]
[null,null,null,null,null,"",null,"",null,null,null,null,null,null,null,null,null,null,"","",null,null,null,"",null,null,null,null,null,"",null,null,null,null,null,null,null,null,null,null,null,1]
[null,null,null,null,null,"",null,"",null,null,null,null,null,null,null,null,null,null,"","",null,null,null,"",null,null,null,null,null,"",null,null,null,null,null,null,null,null,null,null,null,1]
[null,null,null,null,null,"",null,"",null,null,null,null,null,null,null,null,null,null,"","",null,null,null,"",null,null,null,null,null,"",null,null,null,null,null,null,null,null,null,null,null,1]
[null,null,null,null,null,"",null,"",null,null,null,null,null,null,null,null,null,null,"","",null,null,null,"",null,null,null,null,null,"",null,null,null,null,null,null,null,null,null,null,null,1]
[null,null,null,null,null,"",null,"",null,null,null,null,null,null,null,null,null,null,"","",null,null,null,"",null,null,null,null,null,"",null,null,null,null,null,null,null,null,null,null,null,1]
[null,null,null,null,null,"",null,"",null,null,null,null,null,null,null,null,null,null,"","",null,null,null,"",null,null,null,null,null,"",null,null,null,null,null,null,null,null,null,null,null,1]
[null,null,null,null,null,"",null,"",null,null,null,null,null,null,null,null,null,null,"","",null,null,null,"",null,null,null,null,null,"",null,null,null,null,null,null,null,null,null,null,null,1]
[null,null,null,null,null,"",null,"",null,null,null,null,null,null,null,null,null,null,"","",null,null,null,"",null,null,null,null,null,"",null,null,null,null,null,null,null,null,null,null,null,1]
[null,null,null,null,null,"",null,"",null,null,null,null,null,null,null,null,null,null,"","",null,null,null,"",null,null,null,null,null,"",null,null,null,null,null,null,null,null,null,null,null,1]
[null,null,null,null,null,"",null,"",null,null,null,null,null,null,null,null,null,null,"","",null,null,null,"",null,null,null,null,null,"",null,null,null,null,null,null,null,null,null,null,null,1]
[null,null,null,null,null,"",null,"",null,null,null,null,null,null,null,null,null,null,"","",null,null,null,"",null,null,null,null,null,"",null,null,null,null,null,null,null,null,null,null,null,1]
[null,null,null,null,null,"",null,"",null,null,null,null,null,null,null,null,null,null,"","",null,null,null,"",null,null,null,null,null,"",null,null,null,null,null,null,null,null,null,null,null,1]
[null,null,null,null,null,"",null,"",null,null,null,null,null,null,null,null,null,null,"","",null,null,null,"",null,null,null,null,null,"",null,null,null,null,null,null,null,null,null,null,null,1]
[null,null,null,null,null,"",null,"",null,null,null,null,null,null,null,null,null,null,"","",null,null,null,"",null,null,null,null,null,"",null,null,null,null,null,null,null,null,null,null,null,1]
[null,null,null,null,null,"",null,"",null,null,null,null,null,null,null,null,null,null,"","",null,null,null,"",null,null,null,null,null,"",null,null,null,null,null,null,null,null,null,null,null,1]
[null,null,null,null,null,"",null,"",null,null,null,null,null,null,null,null,null,null,"","",null,null,null,"",null,null,null,null,null,"",null,null,null,null,null,null,null,null,null,null,null,1]
[null,null,null,null,null,"",null,"",null,null,null,null,null,null,null,null,null,null,"","",null,null,null,"",null,null,null,null,null,"",null,null,null,null,null,null,null,null,null,null,null,1]
[null,null,null,null,null,"",null,"",null,null,null,null,null,null,null,null,null,null,"","",null,null,null,"",null,null,null,null,null,"",null,null,null,null,null,null,null,null,null,null,null,1]
[null,null,null,null,null,"",null,"",null,null,null,null,null,null,null,null,null,null,"","",null,null,null,"",null,null,null,null,null,"",null,null,null,null,null,null,null,null,null,null,null,1]
[null,null,null,null,null,"",null,"",null,null,null,null,null,null,null,null,null,null,"","",null,null,null,"",null,null,null,null,null,"",null,null,null,null,null,null,null,null,null,null,null,1]
[null,null,null,null,null,"",null,"",null,null,null,null,null,null,null,null,null,null,"","",null,null,null,"",null,null,null,null,null,"",null,null,null,null,null,null,null,null,null,null,null,1]
[null,null,null,null,null,"",null,"",null,null,null,null,null,null,null,null,null,null,"","",null,null,null,"",null,null,null,null,null,"",null,null,null,null,null,null,null,null,null,null,null,1]
[null,null,null,null,null,"",null,"",null,null,null,null,null,null,null,null,null,null,"","",null,null,null,"",null,null,null,null,null,"",null,null,null,null,null,null,null,null,null,null,null,1]
[null,null,null,null,null,"",null,"",null,null,null,null,null,null,null,null,null,null,"","",null,null,null,"",null,null,null,null,null,"",null,null,null,null,null,null,null,null,null,null,null,1]
[null,null,null,null,null,"",null,"",null,null,null,null,null,null,null,null,null,null,"","",null,null,null,"",null,null,null,null,null,"",null,null,null,null,null,null,null,null,null,null,null,1]
[null,null,null,null,null,"",null,"",null,null,null,null,null,null,null,null,null,null,"","",null,null,null,"",null,null,null,null,null,"",null,null,null,null,null,null,null,null,null,null,null,1]
[null,null,null,null,null,"",null,"",null,null,null,null,null,null,null,null,null,null,"","",null,null,null,"",null,null,null,null,null,"",null,null,null,null,null,null,null,null,null,null,null,1]
[null,null,null,null,null,"",null,"",null,null,null,null,null,null,null,null,null,null,"","",null,null,null,"",null,null,null,null,null,"",null,null,null,null,null,null,null,null,null,null,null,1]
[null,null,null,null,null,"",null,"",null,null,null,null,null,null,null,null,null,null,"","",null,null,null,"",null,null,null,null,null,"",null,null,null,null,null,null,null,null,null,null,null,1]
[null,null,null,null,null,"",null,"",null,null,null,null,null,null,null,null,null,null,"","",null,null,null,"",null,null,null,null,null,"",null,null,null,null,null,null,null,null,null,null,null,1]
[null,null,null,null,null,"",null,"",null,null,null,null,null,null,null,null,null,null,"","",null,null,null,"",null,null,null,null,null,"",null,null,null,null,null,null,null,null,null,null,null,1]
[null,null,null,null,null,"",null,"",null,null,null,null,null,null,null,null,null,null,"","",null,null,null,"",null,null,null,null,null,"",null,null,null,null,null,null,null,null,null,null,null,1]
[null,null,null,null,null,"",null,"",null,null,null,null,null,null,null,null,null,null,"","",null,null,null,"",null,null,null,null,null,"",null,null,null,null,null,null,null,null,null,null,null,1]
[null,null,null,null,null,"",null,"",null,null,null,null,null,null,null,null,null,null,"","",null,null,null,"",null,null,null,null,null,"",null,null,null,null,null,null,null,null,null,null,null,1]
[null,null,null,null,null,"",null,"",null,null,null,null,null,null,null,null,null,null,"","",null,null,null,"",null,null,null,null,null,"",null,null,null,null,null,null,null,null,null,null,null,1]
[null,null,null,null,null,"",null,"",null,null,null,null,null,null,null,null,null,null,"","",null,null,null,"",null,null,null,null,null,"",null,null,null,null,null,null,null,null,null,null,null,1]
[null,null,null,null,null,"",null,"",null,null,null,null,null,null,null,null,null,null,"","",null,null,null,"",null,null,null,null,null,"",null,null,null,null,null,null,null,null,null,null,null,1]
[null,null,null,null,null,"",null,"",null,null,null,null,null,null,null,null,null,null,"","",null,null,null,"",null,null,null,null,null,"",null,null,null,null,null,null,null,null,null,null,null,1]
[null,null,null,null,null,"",null,"",null,null,null,null,null,null,null,null,null,null,"","",null,null,null,"",null,null,null,null,null,"",null,null,null,null,null,null,null,null,null,null,null,1]
[null,null,null,null,null,"",null,"",null,null,null,null,null,null,null,null,null,null,"","",null,null,null,"",null,null,null,null,null,"",null,null,null,null,null,null,null,null,null,null,null,1]
[null,null,null,null,null,"",null,"",null,null,null,null,null,null,null,null,null,null,"","",null,null,null,"",null,null,null,null,null,"",null,null,null,null,null,null,null,null,null,null,null,1]
[null,null,null,null,null,"",null,"",null,null,null,null,null,null,null,null,null,null,"","",null,null,null,"",null,null,null,null,null,"",null,null,null,null,null,null,null,null,null,null,null,1]
[null,null,null,null,null,"",null,"",null,null,null,null,null,null,null,null,null,null,"","",null,null,null,"",null,null,null,null,null,"",null,null,null,null,null,null,null,null,null,null,null,1]
[null,null,null,null,null,"",null,"",null,null,null,null,null,null,null,null,null,null,"","",null,null,null,"",null,null,null,null,null,"",null,null,null,null,null,null,null,null,null,null,null,1]
[null,null,null,null,null,"",null,"",null,null,null,null,null,null,null,null,null,null,"","",null,null,null,"",null,null,null,null,null,"",null,null,null,null,null,null,null,null,null,null,null,1]
[null,null,null,null,null,"",null,"",null,null,null,null,null,null,null,null,null,null,"","",null,null,null,"",null,null,null,null,null,"",null,null,null,null,null,null,null,null,null,null,null,1]
[null,null,null,null,null,"",null,"",null,null,null,null,null,null,null,null,null,null,"","",null,null,null,"",null,null,null,null,null,"",null,null,null,null,null,null,null,null,null,null,null,1]
[null,null,null,null,null,"",null,"",null,null,null,null,null,null,null,null,null,null,"","",null,null,null,"",null,null,null,null,null,"",null,null,null,null,null,null,null,null,null,null,null,1]
[null,null,null,null,null,"",null,"",null,null,null,null,null,null,null,null,null,null,"","",null,null,null,"",null,null,null,null,null,"",null,null,null,null,null,null,null,null,null,null,null,1]
[null,null,null,null,null,"",null,"",null,null,null,null,null,null,null,null,null,null,"","",null,null,null,"",null,null,null,null,null,"",null,null,null,null,null,null,null,null,null,null,null,1]
[null,null,null,null,null,"",null,"",null,null,null,null,null,null,null,null,null,null,"","",null,null,null,"",null,null,null,null,null,"",null,null,null,null,null,null,null,null,null,null,null,1]
[null,null,null,null,null,"",null,"",null,null,null,null,null,null,null,null,null,null,"","",null,null,null,"",null,null,null,null,null,"",null,null,null,null,null,null,null,null,null,null,null,1]
[null,null,null,null,null,"",null,"",null,null,null,null,null,null,null,null,null,null,"","",null,null,null,"",null,null,null,null,null,"",null,null,null,null,null,null,null,null,null,null,null,1]
[null,null,null,null,null,"",null,"",null,null,null,null,null,null,null,null,null,null,"","",null,null,null,"",null,null,null,null,null,"",null,null,null,null,null,null,null,null,null,null,null,1]
[null,null,null,null,null,"",null,"",null,null,null,null,null,null,null,null,null,null,"","",null,null,null,"",null,null,null,null,null,"",null,null,null,null,null,null,null,null,null,null,null,1]
[null,null,null,null,null,"",null,"",null,null,null,null,null,null,null,null,null,null,"","",null,null,null,"",null,null,null,null,null,"",null,null,null,null,null,null,null,null,null,null,null,1]
[null,null,null,null,null,{"$f":"LEFT(E148,15)","v":""},null,{"$f":"IFERROR(INDEX(VM_Type,MATCH(G148,Line_Type,0)),\"\")","v":""},null,null,null,null,null,null,null,null,null,null,"",{"$f":"IF(OR(H148=\"CommPortal\",H148=\"CommPortal No VM\"),(LEFT(Customer_Company_Name,2)&\"$\"&S148&\"!\"),\"\")","v":""},null,null,null,{"$f":"IF(P148=\"Yes\",Customer_Company_Name,\"\")","v":""},null,null,null,null,null,{"$f":"IF(Q148=\"Yes\",Customer_Company_Name,\"\")","v":""},null,null,null,null,null,null,null,null,null,null,null,1]
[null,null,null,null,null,"",null,"",null,null,null,null,null,null,null,null,null,null,{"$f":"IF(OR(H149=\"PoVM\",H149=\"CommPortal\",H149=\"CommPortal No VM\",H149=\"Shared VM (Master)\",H149=\"Shared VM (Slave)\"),(MID(B149,10,1)&MID(B149,9,1)&MID(B149,8,1)&MID(B149,7,1)),\"\")","v":""},"",null,null,null,"",null,null,null,null,null,"",null,null,null,null,null,null,null,null,null,null,null,1]
[null,null,null,null,null,"",null,"",null,null,null,null,null,null,null,null,null,null,"","",null,null,null,"",null,null,null,null,null,"",null,null,null,null,null,null,null,null,null,null,null,1]
[null,null,null,null,null,"",null,"",null,null,null,null,null,null,null,null,null,null,"","",null,null,null,"",null,null,null,null,null,"",null,null,null,null,null,null,null,null,null,null,null,1]
[null,null,null,null,null,"",null,"",null,null,null,null,null,null,null,null,null,null,"","",null,null,null,"",null,null,null,null,null,"",null,null,null,null,null,null,null,null,null,null,null,1]
[null,null,null,null,null,"",null,"",null,null,null,null,null,null,null,null,null,null,"","",null,null,null,"",null,null,null,null,null,"",null,null,null,null,null,null,null,null,null,null,null,1]
[null,null,null,null,null,"",null,"",null,null,null,null,null,null,null,null,null,null,"","",null,null,null,"",null,null,null,null,null,"",null,null,null,null,null,null,null,null,null,null,null,1]
[null,null,null,null,null,"",null,"",null,null,null,null,null,null,null,null,null,null,"","",null,null,null,"",null,null,null,null,null,"",null,null,null,null,null,null,null,null,null,null,null,1]
[null,null,null,null,null,"",null,"",null,null,null,null,null,null,null,null,null,null,"","",null,null,null,"",null,null,null,null,null,"",null,null,null,null,null,null,null,null,null,null,null,1]
[null,null,null,null,null,"",null,"",null,null,null,null,null,null,null,null,null,null,"","",null,null,null,"",null,null,null,null,null,"",null,null,null,null,null,null,null,null,null,null,null,1]
[null,null,null,null,null,"",null,"",null,null,null,null,null,null,null,null,null,null,"","",null,null,null,"",null,null,null,null,null,"",null,null,null,null,null,null,null,null,null,null,null,1]
[null,null,null,null,null,"",null,"",null,null,null,null,null,null,null,null,null,null,"","",null,null,null,"",null,null,null,null,null,"",null,null,null,null,null,null,null,null,null,null,null,1]
[null,null,null,null,null,"",null,"",null,null,null,null,null,null,null,null,null,null,"","",null,null,null,"",null,null,null,null,null,"",null,null,null,null,null,null,null,null,null,null,null,1]
[null,null,null,null,null,"",null,"",null,null,null,null,null,null,null,null,null,null,"","",null,null,null,"",null,null,null,null,null,"",null,null,null,null,null,null,null,null,null,null,null,1]
[null,null,null,null,null,"",null,"",null,null,null,null,null,null,null,null,null,null,"","",null,null,null,"",null,null,null,null,null,"",null,null,null,null,null,null,null,null,null,null,null,1]
[null,null,null,null,null,"",null,"",null,null,null,null,null,null,null,null,null,null,"","",null,null,null,"",null,null,null,null,null,"",null,null,null,null,null,null,null,null,null,null,null,1]
[null,null,null,null,null,"",null,"",null,null,null,null,null,null,null,null,null,null,"","",null,null,null,"",null,null,null,null,null,"",null,null,null,null,null,null,null,null,null,null,null,1]
[null,null,null,null,null,"",null,"",null,null,null,null,null,null,null,null,null,null,"","",null,null,null,"",null,null,null,null,null,"",null,null,null,null,null,null,null,null,null,null,null,1]
[null,null,null,null,null,"",null,"",null,null,null,null,null,null,null,null,null,null,"","",null,null,null,"",null,null,null,null,null,"",null,null,null,null,null,null,null,null,null,null,null,1]
[null,null,null,null,null,"",null,"",null,null,null,null,null,null,null,null,null,null,"","",null,null,null,"",null,null,null,null,null,"",null,null,null,null,null,null,null,null,null,null,null,1]
[null,null,null,null,null,"",null,"",null,null,null,null,null,null,null,null,null,null,"","",null,null,null,"",null,null,null,null,null,"",null,null,null,null,null,null,null,null,null,null,null,1]
[null,null,null,null,null,"",null,"",null,null,null,null,null,null,null,null,null,null,"","",null,null,null,"",null,null,null,null,null,"",null,null,null,null,null,null,null,null,null,null,null,1]
[null,null,null,null,null,"",null,"",null,null,null,null,null,null,null,null,null,null,"","",null,null,null,"",null,null,null,null,null,"",null,null,null,null,null,null,null,null,null,null,null,1]
[null,null,null,null,null,"",null,"",null,null,null,null,null,null,null,null,null,null,"","",null,null,null,"",null,null,null,null,null,"",null,null,null,null,null,null,null,null,null,null,null,1]
[null,null,null,null,null,"",null,"",null,null,null,null,null,null,null,null,null,null,"","",null,null,null,"",null,null,null,null,null,"",null,null,null,null,null,null,null,null,null,null,null,1]
[null,null,null,null,null,"",null,"",null,null,null,null,null,null,null,null,null,null,"","",null,null,null,"",null,null,null,null,null,"",null,null,null,null,null,null,null,null,null,null,null,1]
[null,null,null,null,null,"",null,"",null,null,null,null,null,null,null,null,null,null,"","",null,null,null,"",null,null,null,null,null,"",null,null,null,null,null,null,null,null,null,null,null,1]
[null,null,null,null,null,"",null,"",null,null,null,null,null,null,null,null,null,null,"","",null,null,null,"",null,null,null,null,null,"",null,null,null,null,null,null,null,null,null,null,null,1]
[null,null,null,null,null,"",null,"",null,null,null,null,null,null,null,null,null,null,"","",null,null,null,"",null,null,null,null,null,"",null,null,null,null,null,null,null,null,null,null,null,1]
[null,null,null,null,null,"",null,"",null,null,null,null,null,null,null,null,null,null,"","",null,null,null,"",null,null,null,null,null,"",null,null,null,null,null,null,null,null,null,null,null,1]
[null,null,null,null,null,"",null,"",null,null,null,null,null,null,null,null,null,null,"","",null,null,null,"",null,null,null,null,null,"",null,null,null,null,null,null,null,null,null,null,null,1]
[null,null,null,null,null,"",null,"",null,null,null,null,null,null,null,null,null,null,"","",null,null,null,"",null,null,null,null,null,"",null,null,null,null,null,null,null,null,null,null,null,1]
[null,null,null,null,null,"",null,"",null,null,null,null,null,null,null,null,null,null,"","",null,null,null,"",null,null,null,null,null,"",null,null,null,null,null,null,null,null,null,null,null,1]
[null,null,null,null,null,"",null,"",null,null,null,null,null,null,null,null,null,null,"","",null,null,null,"",null,null,null,null,null,"",null,null,null,null,null,null,null,null,null,null,null,1]
[null,null,null,null,null,"",null,"",null,null,null,null,null,null,null,null,null,null,"","",null,null,null,"",null,null,null,null,null,"",null,null,null,null,null,null,null,null,null,null,null,1]
[null,null,null,null,null,"",null,"",null,null,null,null,null,null,null,null,null,null,"","",null,null,null,"",null,null,null,null,null,"",null,null,null,null,null,null,null,null,null,null,null,1]
[null,null,null,null,null,"",null,"",null,null,null,null,null,null,null,null,null,null,"","",null,null,null,"",null,null,null,null,null,"",null,null,null,null,null,null,null,null,null,null,null,1]
[null,null,null,null,null,"",null,"",null,null,null,null,null,null,null,null,null,null,"","",null,null,null,"",null,null,null,null,null,"",null,null,null,null,null,null,null,null,null,null,null,1]
[null,null,null,null,null,"",null,"",null,null,null,null,null,null,null,null,null,null,"","",null,null,null,"",null,null,null,null,null,"",null,null,null,null,null,null,null,null,null,null,null,1]
[null,null,null,null,null,"",null,"",null,null,null,null,null,null,null,null,null,null,"","",null,null,null,"",null,null,null,null,null,"",null,null,null,null,null,null,null,null,null,null,null,1]
[null,null,null,null,null,"",null,"",null,null,null,null,null,null,null,null,null,null,"","",null,null,null,"",null,null,null,null,null,"",null,null,null,null,null,null,null,null,null,null,null,1]
[null,null,null,null,null,"",null,"",null,null,null,null,null,null,null,null,null,null,"","",null,null,null,"",null,null,null,null,null,"",null,null,null,null,null,null,null,null,null,null,null,1]
[null,null,null,null,null,"",null,"",null,null,null,null,null,null,null,null,null,null,"","",null,null,null,"",null,null,null,null,null,"",null,null,null,null,null,null,null,null,null,null,null,1]
[null,null,null,null,null,"",null,"",null,null,null,null,null,null,null,null,null,null,"","",null,null,null,"",null,null,null,null,null,"",null,null,null,null,null,null,null,null,null,null,null,1]
[null,null,null,null,null,"",null,"",null,null,null,null,null,null,null,null,null,null,"","",null,null,null,"",null,null,null,null,null,"",null,null,null,null,null,null,null,null,null,null,null,1]
[null,null,null,null,null,"",null,"",null,null,null,null,null,null,null,null,null,null,"","",null,null,null,"",null,null,null,null,null,"",null,null,null,null,null,null,null,null,null,null,null,1]
[null,null,null,null,null,"",null,"",null,null,null,null,null,null,null,null,null,null,"","",null,null,null,"",null,null,null,null,null,"",null,null,null,null,null,null,null,null,null,null,null,1]
[null,null,null,null,null,"",null,"",null,null,null,null,null,null,null,null,null,null,"","",null,null,null,"",null,null,null,null,null,"",null,null,null,null,null,null,null,null,null,null,null,1]
[null,null,null,null,null,"",null,"",null,null,null,null,null,null,null,null,null,null,"","",null,null,null,"",null,null,null,null,null,"",null,null,null,null,null,null,null,null,null,null,null,1]
[null,null,null,null,null,"",null,"",null,null,null,null,null,null,null,null,null,null,"","",null,null,null,"",null,null,null,null,null,"",null,null,null,null,null,null,null,null,null,null,null,1]
[null,null,null,null,null,"",null,"",null,null,null,null,null,null,null,null,null,null,"","",null,null,null,"",null,null,null,null,null,"",null,null,null,null,null,null,null,null,null,null,null,1]
[null,null,null,null,null,"",null,"",null,null,null,null,null,null,null,null,null,null,"","",null,null,null,"",null,null,null,null,null,"",null,null,null,null,null,null,null,null,null,null,null,1]
[null,null,null,null,null,"",null,"",null,null,null,null,null,null,null,null,null,null,"","",null,null,null,"",null,null,null,null,null,"",null,null,null,null,null,null,null,null,null,null,null,1]
[null,null,null,null,null,"",null,"",null,null,null,null,null,null,null,null,null,null,"","",null,null,null,"",null,null,null,null,null,"",null,null,null,null,null,null,null,null,null,null,null,1]
[null,null,null,null,null,"",null,"",null,null,null,null,null,null,null,null,null,null,"","",null,null,null,"",null,null,null,null,null,"",null,null,null,null,null,null,null,null,null,null,null,1]
[null,null,null,null,null,"",null,"",null,null,null,null,null,null,null,null,null,null,"","",null,null,null,"",null,null,null,null,null,"",null,null,null,null,null,null,null,null,null,null,null,1]
[null,null,null,null,null,"",null,"",null,null,null,null,null,null,null,null,null,null,"","",null,null,null,"",null,null,null,null,null,"",null,null,null,null,null,null,null,null,null,null,null,1]
[null,null,null,null,null,"",null,"",null,null,null,null,null,null,null,null,null,null,"","",null,null,null,"",null,null,null,null,null,"",null,null,null,null,null,null,null,null,null,null,null,1]
[null,null,null,null,null,"",null,"",null,null,null,null,null,null,null,null,null,null,"","",null,null,null,"",null,null,null,null,null,"",null,null,null,null,null,null,null,null,null,null,null,1]
[null,null,null,null,null,"",null,"",null,null,null,null,null,null,null,null,null,null,"","",null,null,null,"",null,null,null,null,null,"",null,null,null,null,null,null,null,null,null,null,null,1]
[null,null,null,null,null,"",null,"",null,null,null,null,null,null,null,null,null,null,"","",null,null,null,"",null,null,null,null,null,"",null,null,null,null,null,null,null,null,null,null,null,1]
[null,null,null,null,null,"",null,"",null,null,null,null,null,null,null,null,null,null,"","",null,null,null,"",null,null,null,null,null,"",null,null,null,null,null,null,null,null,null,null,null,1]
[null,null,null,null,null,"",null,"",null,null,null,null,null,null,null,null,null,null,"","",null,null,null,"",null,null,null,null,null,"",null,null,null,null,null,null,null,null,null,null,null,1]
[null,null,null,null,null,"",null,"",null,null,null,null,null,null,null,null,null,null,"","",null,null,null,"",null,null,null,null,null,"",null,null,null,null,null,null,null,null,null,null,null,1]
[null,null,null,null,null,{"$f":"LEFT(E212,15)","v":""},null,{"$f":"IFERROR(INDEX(VM_Type,MATCH(G212,Line_Type,0)),\"\")","v":""},null,null,null,null,null,null,null,null,null,null,"",{"$f":"IF(OR(H212=\"CommPortal\",H212=\"CommPortal No VM\"),(LEFT(Customer_Company_Name,2)&\"$\"&S212&\"!\"),\"\")","v":""},null,null,null,{"$f":"IF(P212=\"Yes\",Customer_Company_Name,\"\")","v":""},null,null,null,null,null,{"$f":"IF(Q212=\"Yes\",Customer_Company_Name,\"\")","v":""},null,null,null,null,null,null,null,null,null,null,null,1]
[null,null,null,null,null,"",null,"",null,null,null,null,null,null,null,null,null,null,{"$f":"IF(OR(H213=\"PoVM\",H213=\"CommPortal\",H213=\"CommPortal No VM\",H213=\"Shared VM (Master)\",H213=\"Shared VM (Slave)\"),(MID(B213,10,1)&MID(B213,9,1)&MID(B213,8,1)&MID(B213,7,1)),\"\")","v":""},"",null,null,null,"",null,null,null,null,null,"",null,null,null,null,null,null,null,null,null,null,null,1]
[null,null,null,null,null,"",null,"",null,null,null,null,null,null,null,null,null,null,"","",null,null,null,"",null,null,null,null,null,"",null,null,null,null,null,null,null,null,null,null,null,1]
[null,null,null,null,null,"",null,"",null,null,null,null,null,null,null,null,null,null,"","",null,null,null,"",null,null,null,null,null,"",null,null,null,null,null,null,null,null,null,null,null,1]
[null,null,null,null,null,"",null,"",null,null,null,null,null,null,null,null,null,null,"","",null,null,null,"",null,null,null,null,null,"",null,null,null,null,null,null,null,null,null,null,null,1]
[null,null,null,null,null,"",null,"",null,null,null,null,null,null,null,null,null,null,"","",null,null,null,"",null,null,null,null,null,"",null,null,null,null,null,null,null,null,null,null,null,1]
[null,null,null,null,null,"",null,"",null,null,null,null,null,null,null,null,null,null,"","",null,null,null,"",null,null,null,null,null,"",null,null,null,null,null,null,null,null,null,null,null,1]
[null,null,null,null,null,"",null,"",null,null,null,null,null,null,null,null,null,null,"","",null,null,null,"",null,null,null,null,null,"",null,null,null,null,null,null,null,null,null,null,null,1]
[null,null,null,null,null,"",null,"",null,null,null,null,null,null,null,null,null,null,"","",null,null,null,"",null,null,null,null,null,"",null,null,null,null,null,null,null,null,null,null,null,1]
[null,null,null,null,null,"",null,"",null,null,null,null,null,null,null,null,null,null,"","",null,null,null,"",null,null,null,null,null,"",null,null,null,null,null,null,null,null,null,null,null,1]
[null,null,null,null,null,"",null,"",null,null,null,null,null,null,null,null,null,null,"","",null,null,null,"",null,null,null,null,null,"",null,null,null,null,null,null,null,null,null,null,null,1]
[null,null,null,null,null,"",null,"",null,null,null,null,null,null,null,null,null,null,"","",null,null,null,"",null,null,null,null,null,"",null,null,null,null,null,null,null,null,null,null,null,1]
[null,null,null,null,null,"",null,"",null,null,null,null,null,null,null,null,null,null,"","",null,null,null,"",null,null,null,null,null,"",null,null,null,null,null,null,null,null,null,null,null,1]
[null,null,null,null,null,"",null,"",null,null,null,null,null,null,null,null,null,null,"","",null,null,null,"",null,null,null,null,null,"",null,null,null,null,null,null,null,null,null,null,null,1]
[null,null,null,null,null,"",null,"",null,null,null,null,null,null,null,null,null,null,"","",null,null,null,"",null,null,null,null,null,"",null,null,null,null,null,null,null,null,null,null,null,1]
[null,null,null,null,null,"",null,"",null,null,null,null,null,null,null,null,null,null,"","",null,null,null,"",null,null,null,null,null,"",null,null,null,null,null,null,null,null,null,null,null,1]
[null,null,null,null,null,"",null,"",null,null,null,null,null,null,null,null,null,null,"","",null,null,null,"",null,null,null,null,null,"",null,null,null,null,null,null,null,null,null,null,null,1]
[null,null,null,null,null,"",null,"",null,null,null,null,null,null,null,null,null,null,"","",null,null,null,"",null,null,null,null,null,"",null,null,null,null,null,null,null,null,null,null,null,1]
[null,null,null,null,null,"",null,"",null,null,null,null,null,null,null,null,null,null,"","",null,null,null,"",null,null,null,null,null,"",null,null,null,null,null,null,null,null,null,null,null,1]
[null,null,null,null,null,"",null,"",null,null,null,null,null,null,null,null,null,null,"","",null,null,null,"",null,null,null,null,null,"",null,null,null,null,null,null,null,null,null,null,null,1]
[null,null,null,null,null,"",null,"",null,null,null,null,null,null,null,null,null,null,"","",null,null,null,"",null,null,null,null,null,"",null,null,null,null,null,null,null,null,null,null,null,1]
[null,null,null,null,null,"",null,"",null,null,null,null,null,null,null,null,null,null,"","",null,null,null,"",null,null,null,null,null,"",null,null,null,null,null,null,null,null,null,null,null,1]
[null,null,null,null,null,"",null,"",null,null,null,null,null,null,null,null,null,null,"","",null,null,null,"",null,null,null,null,null,"",null,null,null,null,null,null,null,null,null,null,null,1]
[null,null,null,null,null,"",null,"",null,null,null,null,null,null,null,null,null,null,"","",null,null,null,"",null,null,null,null,null,"",null,null,null,null,null,null,null,null,null,null,null,1]
[null,null,null,null,null,"",null,"",null,null,null,null,null,null,null,null,null,null,"","",null,null,null,"",null,null,null,null,null,"",null,null,null,null,null,null,null,null,null,null,null,1]
[null,null,null,null,null,"",null,"",null,null,null,null,null,null,null,null,null,null,"","",null,null,null,"",null,null,null,null,null,"",null,null,null,null,null,null,null,null,null,null,null,1]
[null,null,null,null,null,"",null,"",null,null,null,null,null,null,null,null,null,null,"","",null,null,null,"",null,null,null,null,null,"",null,null,null,null,null,null,null,null,null,null,null,1]
[null,null,null,null,null,"",null,"",null,null,null,null,null,null,null,null,null,null,"","",null,null,null,"",null,null,null,null,null,"",null,null,null,null,null,null,null,null,null,null,null,1]
[null,null,null,null,null,"",null,"",null,null,null,null,null,null,null,null,null,null,"","",null,null,null,"",null,null,null,null,null,"",null,null,null,null,null,null,null,null,null,null,null,1]
[null,null,null,null,null,"",null,"",null,null,null,null,null,null,null,null,null,null,"","",null,null,null,"",null,null,null,null,null,"",null,null,null,null,null,null,null,null,null,null,null,1]
[null,null,null,null,null,"",null,"",null,null,null,null,null,null,null,null,null,null,"","",null,null,null,"",null,null,null,null,null,"",null,null,null,null,null,null,null,null,null,null,null,1]
[null,null,null,null,null,"",null,"",null,null,null,null,null,null,null,null,null,null,"","",null,null,null,"",null,null,null,null,null,"",null,null,null,null,null,null,null,null,null,null,null,1]
[null,null,null,null,null,"",null,"",null,null,null,null,null,null,null,null,null,null,"","",null,null,null,"",null,null,null,null,null,"",null,null,null,null,null,null,null,null,null,null,null,1]
[null,null,null,null,null,"",null,"",null,null,null,null,null,null,null,null,null,null,"","",null,null,null,"",null,null,null,null,null,"",null,null,null,null,null,null,null,null,null,null,null,1]
[null,null,null,null,null,"",null,"",null,null,null,null,null,null,null,null,null,null,"","",null,null,null,"",null,null,null,null,null,"",null,null,null,null,null,null,null,null,null,null,null,1]
[null,null,null,null,null,"",null,"",null,null,null,null,null,null,null,null,null,null,"","",null,null,null,"",null,null,null,null,null,"",null,null,null,null,null,null,null,null,null,null,null,1]
[null,null,null,null,null,"",null,"",null,null,null,null,null,null,null,null,null,null,"","",null,null,null,"",null,null,null,null,null,"",null,null,null,null,null,null,null,null,null,null,null,1]
[null,null,null,null,null,"",null,"",null,null,null,null,null,null,null,null,null,null,"","",null,null,null,"",null,null,null,null,null,"",null,null,null,null,null,null,null,null,null,null,null,1]
[null,null,null,null,null,"",null,"",null,null,null,null,null,null,null,null,null,null,"","",null,null,null,"",null,null,null,null,null,"",null,null,null,null,null,null,null,null,null,null,null,1]
[null,null,null,null,null,null,null,null,null,null,null,null,null,null,null,null,null,null,null,"",null,null,null,null,null,null,null,null,null,null,null,null,null,null,null,null,null,null,null,null,null,1]
[null,null,null,null,null,null,null,null,null,null,null,null,null,null,null,null,null,null,null,""]
[null,null,null,null,null,null,null,null,null,null,null,null,null,null,null,null,null,null,null,""]
[null,null,null,null,null,null,null,null,null,null,null,null,null,null,null,null,null,null,null,""]
[null,null,null,null,null,null,null,null,null,null,null,null,null,null,null,null,null,null,null,""]
[null,null,null,null,null,null,null,null,null,null,null,null,null,null,null,null,null,null,null,""]
[null,null,null,null,null,null,null,null,null,null,null,null,null,null,null,null,null,null,null,""]
[null,null,null,null,null,null,null,null,null,null,null,null,null,null,null,null,null,null,null,""]
[null,null,null,null,null,null,null,null,null,null,null,null,null,null,null,null,null,null,null,""]
[null,null,null,null,null,null,null,null,null,null,null,null,null,null,null,null,null,null,null,""]
[null,null,null,null,null,null,null,null,null,null,null,null,null,null,null,null,null,null,null,""]
[null,null,null,null,null,null,null,null,null,null,null,null,null,null,null,null,null,null,null,""]
[null,null,null,null,null,null,null,null,null,null,null,null,null,null,null,null,null,null,null,""]
[null,null,null,null,null,null,null,null,null,null,null,null,null,null,null,null,null,null,null,""]
[null,null,null,null,null,null,null,null,null,null,null,null,null,null,null,null,null,null,null,""]
[null,null,null,null,null,null,null,null,null,null,null,null,null,null,null,null,null,null,null,""]
[null,null,null,null,null,null,null,null,null,null,null,null,null,null,null,null,null,null,null,""]
[null,null,null,null,null,null,null,null,null,null,null,null,null,null,null,null,null,null,null,""]
[null,null,null,null,null,null,null,null,null,null,null,null,null,null,null,null,null,null,null,""]
[null,null,null,null,null,null,null,null,null,null,null,null,null,null,null,null,null,null,null,""]
[null,null,null,null,null,null,null,null,null,null,null,null,null,null,null,null,null,null,null,""]
[null,null,null,null,null,null,null,null,null,null,null,null,null,null,null,null,null,null,null,""]
[null,null,null,null,null,null,null,null,null,null,null,null,null,null,null,null,null,null,null,""]
[null,null,null,null,null,null,null,null,null,null,null,null,null,null,null,null,null,null,null,""]
[null,null,null,null,null,null,null,null,null,null,null,null,null,null,null,null,null,null,null,""]
[null,null,null,null,null,null,null,null,null,null,null,null,null,null,null,null,null,null,null,{"$f":"IF(OR(H276=\"CommPortal\",H276=\"CommPortal No VM\"),(LEFT(Customer_Company_Name,2)&\"$\"&S276&\"!\"),\"\")","v":""}]
[null,null,null,null,null,null,null,null,null,null,null,null,null,null,null,null,null,null,null,""]
[null,null,null,null,null,null,null,null,null,null,null,null,null,null,null,null,null,null,null,""]
[null,null,null,null,null,null,null,null,null,null,null,null,null,null,null,null,null,null,null,""]
[null,null,null,null,null,null,null,null,null,null,null,null,null,null,null,null,null,null,null,""]
[null,null,null,null,null,null,null,null,null,null,null,null,null,null,null,null,null,null,null,""]
[null,null,null,null,null,null,null,null,null,null,null,null,null,null,null,null,null,null,null,""]
[null,null,null,null,null,null,null,null,null,null,null,null,null,null,null,null,null,null,null,""]
[null,null,null,null,null,null,null,null,null,null,null,null,null,null,null,null,null,null,null,""]
[null,null,null,null,null,null,null,null,null,null,null,null,null,null,null,null,null,null,null,""]
[null,null,null,null,null,null,null,null,null,null,null,null,null,null,null,null,null,null,null,""]
[null,null,null,null,null,null,null,null,null,null,null,null,null,null,null,null,null,null,null,""]
[null,null,null,null,null,null,null,null,null,null,null,null,null,null,null,null,null,null,null,""]
[null,null,null,null,null,null,null,null,null,null,null,null,null,null,null,null,null,null,null,""]
[null,null,null,null,null,null,null,null,null,null,null,null,null,null,null,null,null,null,null,""]
[null,null,null,null,null,null,null,null,null,null,null,null,null,null,null,null,null,null,null,""]
[null,null,null,null,null,null,null,null,null,null,null,null,null,null,null,null,null,null,null,""]
[null,null,null,null,null,null,null,null,null,null,null,null,null,null,null,null,null,null,null,""]
[null,null,null,null,null,null,null,null,null,null,null,null,null,null,null,null,null,null,null,""]
[null,null,null,null,null,null,null,null,null,null,null,null,null,null,null,null,null,null,null,""]
[null,null,null,null,null,null,null,null,null,null,null,null,null,null,null,null,null,null,null,""]
[null,null,null,null,null,null,null,null,null,null,null,null,null,null,null,null,null,null,null,""]
[null,null,null,null,null,null,null,null,null,null,null,null,null,null,null,null,null,null,null,""]
[null,null,null,null,null,null,null,null,null,null,null,null,null,null,null,null,null,null,null,""]
[null,null,null,null,null,null,null,null,null,null,null,null,null,null,null,null,null,null,null,""]
[null,null,null,null,null,null,null,null,null,null,null,null,null,null,null,null,null,null,null,""]
[null,null,null,null,null,null,null,null,null,null,null,null,null,null,null,null,null,null,null,""]
[null,null,null,null,null,null,null,null,null,null,null,null,null,null,null,null,null,null,null,""]
[null,null,null,null,null,null,null,null,null,null,null,null,null,null,null,null,null,null,null,""]
[null,null,null,null,null,null,null,null,null,null,null,null,null,null,null,null,null,null,null,""]
[null,null,null,null,null,null,null,null,null,null,null,null,null,null,null,null,null,null,null,""]
[null,null,null,null,null,null,null,null,null,null,null,null,null,null,null,null,null,null,null,""]
[null,null,null,null,null,null,null,null,null,null,null,null,null,null,null,null,null,null,null,""]
[null,null,null,null,null,null,null,null,null,null,null,null,null,null,null,null,null,null,null,""]
[null,null,null,null,null,null,null,null,null,null,null,null,null,null,null,null,null,null,null,""]
[null,null,null,null,null,null,null,null,null,null,null,null,null,null,null,null,null,null,null,""]
[null,null,null,null,null,null,null,null,null,null,null,null,null,null,null,null,null,null,null,""]
[null,null,null,null,null,null,null,null,null,null,null,null,null,null,null,null,null,null,null,""]
[null,null,null,null,null,null,null,null,null,null,null,null,null,null,null,null,null,null,null,""]
[null,null,null,null,null,null,null,null,null,null,null,null,null,null,null,null,null,null,null,""]
[null,null,null,null,null,null,null,null,null,null,null,null,null,null,null,null,null,null,null,""]
[null,null,null,null,null,null,null,null,null,null,null,null,null,null,null,null,null,null,null,""]
[null,null,null,null,null,null,null,null,null,null,null,null,null,null,null,null,null,null,null,""]
[null,null,null,null,null,null,null,null,null,null,null,null,null,null,null,null,null,null,null,""]
[null,null,null,null,null,null,null,null,null,null,null,null,null,null,null,null,null,null,null,""]
[null,null,null,null,null,null,null,null,null,null,null,null,null,null,null,null,null,null,null,""]
[null,null,null,null,null,null,null,null,null,null,null,null,null,null,null,null,null,null,null,""]
[null,null,null,null,null,null,null,null,null,null,null,null,null,null,null,null,null,null,null,""]
[null,null,null,null,null,null,null,null,null,null,null,null,null,null,null,null,null,null,null,""]
[null,null,null,null,null,null,null,null,null,null,null,null,null,null,null,null,null,null,null,""]
[null,null,null,null,null,null,null,null,null,null,null,null,null,null,null,null,null,null,null,""]
[null,null,null,null,null,null,null,null,null,null,null,null,null,null,null,null,null,null,null,""]
[null,null,null,null,null,null,null,null,null,null,null,null,null,null,null,null,null,null,null,""]
[null,null,null,null,null,null,null,null,null,null,null,null,null,null,null,null,null,null,null,""]
[null,null,null,null,null,null,null,null,null,null,null,null,null,null,null,null,null,null,null,""]
[null,null,null,null,null,null,null,null,null,null,null,null,null,null,null,null,null,null,null,""]
[null,null,null,null,null,null,null,null,null,null,null,null,null,null,null,null,null,null,null,""]
[null,null,null,null,null,null,null,null,null,null,null,null,null,null,null,null,null,null,null,""]
[null,null,null,null,null,null,null,null,null,null,null,null,null,null,null,null,null,null,null,""]
[null,null,null,null,null,null,null,null,null,null,null,null,null,null,null,null,null,null,null,""]
[null,null,null,null,null,null,null,null,null,null,null,null,null,null,null,null,null,null,null,""]
[null,null,null,null,null,null,null,null,null,null,null,null,null,null,null,null,null,null,null,""]
[null,null,null,null,null,null,null,null,null,null,null,null,null,null,null,null,null,null,null,""]
[null,null,null,null,null,null,null,null,null,null,null,null,null,null,null,null,null,null,null,""]
[null,null,null,null,null,null,null,null,null,null,null,null,null,null,null,null,null,null,null,{"$f":"IF(OR(H340=\"CommPortal\",H340=\"CommPortal No VM\"),(LEFT(Customer_Company_Name,2)&\"$\"&S340&\"!\"),\"\")","v":""}]
[null,null,null,null,null,null,null,null,null,null,null,null,null,null,null,null,null,null,null,""]
[null,null,null,null,null,null,null,null,null,null,null,null,null,null,null,null,null,null,null,""]
[null,null,null,null,null,null,null,null,null,null,null,null,null,null,null,null,null,null,null,""]
[null,null,null,null,null,null,null,null,null,null,null,null,null,null,null,null,null,null,null,""]
[null,null,null,null,null,null,null,null,null,null,null,null,null,null,null,null,null,null,null,""]
[null,null,null,null,null,null,null,null,null,null,null,null,null,null,null,null,null,null,null,""]
[null,null,null,null,null,null,null,null,null,null,null,null,null,null,null,null,null,null,null,""]
[null,null,null,null,null,null,null,null,null,null,null,null,null,null,null,null,null,null,null,""]
[null,null,null,null,null,null,null,null,null,null,null,null,null,null,null,null,null,null,null,""]
[null,null,null,null,null,null,null,null,null,null,null,null,null,null,null,null,null,null,null,""]
[null,null,null,null,null,null,null,null,null,null,null,null,null,null,null,null,null,null,null,""]
[null,null,null,null,null,null,null,null,null,null,null,null,null,null,null,null,null,null,null,""]
[null,null,null,null,null,null,null,null,null,null,null,null,null,null,null,null,null,null,null,""]
[null,null,null,null,null,null,null,null,null,null,null,null,null,null,null,null,null,null,null,""]
[null,null,null,null,null,null,null,null,null,null,null,null,null,null,null,null,null,null,null,""]
[null,null,null,null,null,null,null,null,null,null,null,null,null,null,null,null,null,null,null,""]
[null,null,null,null,null,null,null,null,null,null,null,null,null,null,null,null,null,null,null,""]
[null,null,null,null,null,null,null,null,null,null,null,null,null,null,null,null,null,null,null,""]
[null,null,null,null,null,null,null,null,null,null,null,null,null,null,null,null,null,null,null,""]
[null,null,null,null,null,null,null,null,null,null,null,null,null,null,null,null,null,null,null,""]
[null,null,null,null,null,null,null,null,null,null,null,null,null,null,null,null,null,null,null,""]
[null,null,null,null,null,null,null,null,null,null,null,null,null,null,null,null,null,null,null,""]
[null,null,null,null,null,null,null,null,null,null,null,null,null,null,null,null,null,null,null,""]
[null,null,null,null,null,null,null,null,null,null,null,null,null,null,null,null,null,null,null,""]
[null,null,null,null,null,null,null,null,null,null,null,null,null,null,null,null,null,null,null,""]
[null,null,null,null,null,null,null,null,null,null,null,null,null,null,null,null,null,null,null,""]
[null,null,null,null,null,null,null,null,null,null,null,null,null,null,null,null,null,null,null,""]
[null,null,null,null,null,null,null,null,null,null,null,null,null,null,null,null,null,null,null,""]
[null,null,null,null,null,null,null,null,null,null,null,null,null,null,null,null,null,null,null,""]
[null,null,null,null,null,null,null,null,null,null,null,null,null,null,null,null,null,null,null,""]
[null,null,null,null,null,null,null,null,null,null,null,null,null,null,null,null,null,null,null,""]
[null,null,null,null,null,null,null,null,null,null,null,null,null,null,null,null,null,null,null,""]
[null,null,null,null,null,null,null,null,null,null,null,null,null,null,null,null,null,null,null,""]
[null,null,null,null,null,null,null,null,null,null,null,null,null,null,null,null,null,null,null,""]
[null,null,null,null,null,null,null,null,null,null,null,null,null,null,null,null,null,null,null,""]
[null,null,null,null,null,null,null,null,null,null,null,null,null,null,null,null,null,null,null,""]
[null,null,null,null,null,null,null,null,null,null,null,null,null,null,null,null,null,null,null,""]
[null,null,null,null,null,null,null,null,null,null,null,null,null,null,null,null,null,null,null,""]
[null,null,null,null,null,null,null,null,null,null,null,null,null,null,null,null,null,null,null,""]
[null,null,null,null,null,null,null,null,null,null,null,null,null,null,null,null,null,null,null,""]
[null,null,null,null,null,null,null,null,null,null,null,null,null,null,null,null,null,null,null,""]
[null,null,null,null,null,null,null,null,null,null,null,null,null,null,null,null,null,null,null,""]
[null,null,null,null,null,null,null,null,null,null,null,null,null,null,null,null,null,null,null,""]
[null,null,null,null,null,null,null,null,null,null,null,null,null,null,null,null,null,null,null,""]
[null,null,null,null,null,null,null,null,null,null,null,null,null,null,null,null,null,null,null,""]
[null,null,null,null,null,null,null,null,null,null,null,null,null,null,null,null,null,null,null,""]
[null,null,null,null,null,null,null,null,null,null,null,null,null,null,null,null,null,null,null,""]
[null,null,null,null,null,null,null,null,null,null,null,null,null,null,null,null,null,null,null,""]
[null,null,null,null,null,null,null,null,null,null,null,null,null,null,null,null,null,null,null,""]
[null,null,null,null,null,null,null,null,null,null,null,null,null,null,null,null,null,null,null,""]
[null,null,null,null,null,null,null,null,null,null,null,null,null,null,null,null,null,null,null,""]
[null,null,null,null,null,null,null,null,null,null,null,null,null,null,null,null,null,null,null,""]
[null,null,null,null,null,null,null,null,null,null,null,null,null,null,null,null,null,null,null,""]
[null,null,null,null,null,null,null,null,null,null,null,null,null,null,null,null,null,null,null,""]
[null,null,null,null,null,null,null,null,null,null,null,null,null,null,null,null,null,null,null,""]
[null,null,null,null,null,null,null,null,null,null,null,null,null,null,null,null,null,null,null,""]
[null,null,null,null,null,null,null,null,null,null,null,null,null,null,null,null,null,null,null,""]
[null,null,null,null,null,null,null,null,null,null,null,null,null,null,null,null,null,null,null,""]
[null,null,null,null,null,null,null,null,null,null,null,null,null,null,null,null,null,null,null,""]
[null,null,null,null,null,null,null,null,null,null,null,null,null,null,null,null,null,null,null,""]
[null,null,null,null,null,null,null,null,null,null,null,null,null,null,null,null,null,null,null,""]
[null,null,null,null,null,null,null,null,null,null,null,null,null,null,null,null,null,null,null,""]
[null,null,null,null,null,null,null,null,null,null,null,null,null,null,null,null,null,null,null,""]
[null,null,null,null,null,null,null,null,null,null,null,null,null,null,null,null,null,null,null,{"$f":"IF(OR(H404=\"CommPortal\",H404=\"CommPortal No VM\"),(LEFT(Customer_Company_Name,2)&\"$\"&S404&\"!\"),\"\")","v":""}]
[null,null,null,null,null,null,null,null,null,null,null,null,null,null,null,null,null,null,null,""]
[null,null,null,null,null,null,null,null,null,null,null,null,null,null,null,null,null,null,null,""]
[null,null,null,null,null,null,null,null,null,null,null,null,null,null,null,null,null,null,null,""]
[null,null,null,null,null,null,null,null,null,null,null,null,null,null,null,null,null,null,null,""]
[null,null,null,null,null,null,null,null,null,null,null,null,null,null,null,null,null,null,null,""]
[null,null,null,null,null,null,null,null,null,null,null,null,null,null,null,null,null,null,null,""]
[null,null,null,null,null,null,null,null,null,null,null,null,null,null,null,null,null,null,null,""]
[null,null,null,null,null,null,null,null,null,null,null,null,null,null,null,null,null,null,null,""]
[null,null,null,null,null,null,null,null,null,null,null,null,null,null,null,null,null,null,null,""]
[null,null,null,null,null,null,null,null,null,null,null,null,null,null,null,null,null,null,null,""]
[null,null,null,null,null,null,null,null,null,null,null,null,null,null,null,null,null,null,null,""]
[null,null,null,null,null,null,null,null,null,null,null,null,null,null,null,null,null,null,null,""]
[null,null,null,null,null,null,null,null,null,null,null,null,null,null,null,null,null,null,null,""]
[null,null,null,null,null,null,null,null,null,null,null,null,null,null,null,null,null,null,null,""]
[null,null,null,null,null,null,null,null,null,null,null,null,null,null,null,null,null,null,null,""]
[null,null,null,null,null,null,null,null,null,null,null,null,null,null,null,null,null,null,null,""]
[null,null,null,null,null,null,null,null,null,null,null,null,null,null,null,null,null,null,null,""]
[null,null,null,null,null,null,null,null,null,null,null,null,null,null,null,null,null,null,null,""]
[null,null,null,null,null,null,null,null,null,null,null,null,null,null,null,null,null,null,null,""]
[null,null,null,null,null,null,null,null,null,null,null,null,null,null,null,null,null,null,null,""]
[null,null,null,null,null,null,null,null,null,null,null,null,null,null,null,null,null,null,null,""]
[null,null,null,null,null,null,null,null,null,null,null,null,null,null,null,null,null,null,null,""]
[null,null,null,null,null,null,null,null,null,null,null,null,null,null,null,null,null,null,null,""]
[null,null,null,null,null,null,null,null,null,null,null,null,null,null,null,null,null,null,null,""]
[null,null,null,null,null,null,null,null,null,null,null,null,null,null,null,null,null,null,null,""]
[null,null,null,null,null,null,null,null,null,null,null,null,null,null,null,null,null,null,null,""]
[null,null,null,null,null,null,null,null,null,null,null,null,null,null,null,null,null,null,null,""]
[null,null,null,null,null,null,null,null,null,null,null,null,null,null,null,null,null,null,null,""]
[null,null,null,null,null,null,null,null,null,null,null,null,null,null,null,null,null,null,null,""]
[null,null,null,null,null,null,null,null,null,null,null,null,null,null,null,null,null,null,null,""]
[null,null,null,null,null,null,null,null,null,null,null,null,null,null,null,null,null,null,null,""]
[null,null,null,null,null,null,null,null,null,null,null,null,null,null,null,null,null,null,null,""]
[null,null,null,null,null,null,null,null,null,null,null,null,null,null,null,null,null,null,null,""]
[null,null,null,null,null,null,null,null,null,null,null,null,null,null,null,null,null,null,null,""]
[null,null,null,null,null,null,null,null,null,null,null,null,null,null,null,null,null,null,null,""]
[null,null,null,null,null,null,null,null,null,null,null,null,null,null,null,null,null,null,null,""]
[null,null,null,null,null,null,null,null,null,null,null,null,null,null,null,null,null,null,null,""]
[null,null,null,null,null,null,null,null,null,null,null,null,null,null,null,null,null,null,null,""]
[null,null,null,null,null,null,null,null,null,null,null,null,null,null,null,null,null,null,null,""]
[null,null,null,null,null,null,null,null,null,null,null,null,null,null,null,null,null,null,null,""]
[null,null,null,null,null,null,null,null,null,null,null,null,null,null,null,null,null,null,null,""]
[null,null,null,null,null,null,null,null,null,null,null,null,null,null,null,null,null,null,null,""]
[null,null,null,null,null,null,null,null,null,null,null,null,null,null,null,null,null,null,null,""]
[null,null,null,null,null,null,null,null,null,null,null,null,null,null,null,null,null,null,null,""]
[null,null,null,null,null,null,null,null,null,null,null,null,null,null,null,null,null,null,null,""]
[null,null,null,null,null,null,null,null,null,null,null,null,null,null,null,null,null,null,null,""]
[null,null,null,null,null,null,null,null,null,null,null,null,null,null,null,null,null,null,null,""]
[null,null,null,null,null,null,null,null,null,null,null,null,null,null,null,null,null,null,null,""]
[null,null,null,null,null,null,null,null,null,null,null,null,null,null,null,null,null,null,null,""]
[null,null,null,null,null,null,null,null,null,null,null,null,null,null,null,null,null,null,null,""]
[null,null,null,null,null,null,null,null,null,null,null,null,null,null,null,null,null,null,null,""]
[null,null,null,null,null,null,null,null,null,null,null,null,null,null,null,null,null,null,null,""]
[null,null,null,null,null,null,null,null,null,null,null,null,null,null,null,null,null,null,null,""]
[null,null,null,null,null,null,null,null,null,null,null,null,null,null,null,null,null,null,null,""]
[null,null,null,null,null,null,null,null,null,null,null,null,null,null,null,null,null,null,null,""]
[null,null,null,null,null,null,null,null,null,null,null,null,null,null,null,null,null,null,null,""]
[null,null,null,null,null,null,null,null,null,null,null,null,null,null,null,null,null,null,null,""]
[null,null,null,null,null,null,null,null,null,null,null,null,null,null,null,null,null,null,null,""]
[null,null,null,null,null,null,null,null,null,null,null,null,null,null,null,null,null,null,null,""]
[null,null,null,null,null,null,null,null,null,null,null,null,null,null,null,null,null,null,null,""]
[null,null,null,null,null,null,null,null,null,null,null,null,null,null,null,null,null,null,null,""]
[null,null,null,null,null,null,null,null,null,null,null,null,null,null,null,null,null,null,null,""]
[null,null,null,null,null,null,null,null,null,null,null,null,null,null,null,null,null,null,null,""]
[null,null,null,null,null,null,null,null,null,null,null,null,null,null,null,null,null,null,null,{"$f":"IF(OR(H468=\"CommPortal\",H468=\"CommPortal No VM\"),(LEFT(Customer_Company_Name,2)&\"$\"&S468&\"!\"),\"\")","v":""}]
[null,null,null,null,null,null,null,null,null,null,null,null,null,null,null,null,null,null,null,""]
[null,null,null,null,null,null,null,null,null,null,null,null,null,null,null,null,null,null,null,""]
[null,null,null,null,null,null,null,null,null,null,null,null,null,null,null,null,null,null,null,""]
[null,null,null,null,null,null,null,null,null,null,null,null,null,null,null,null,null,null,null,""]
[null,null,null,null,null,null,null,null,null,null,null,null,null,null,null,null,null,null,null,""]
[null,null,null,null,null,null,null,null,null,null,null,null,null,null,null,null,null,null,null,""]
[null,null,null,null,null,null,null,null,null,null,null,null,null,null,null,null,null,null,null,""]
[null,null,null,null,null,null,null,null,null,null,null,null,null,null,null,null,null,null,null,""]
[null,null,null,null,null,null,null,null,null,null,null,null,null,null,null,null,null,null,null,""]
[null,null,null,null,null,null,null,null,null,null,null,null,null,null,null,null,null,null,null,""]
[null,null,null,null,null,null,null,null,null,null,null,null,null,null,null,null,null,null,null,""]
[null,null,null,null,null,null,null,null,null,null,null,null,null,null,null,null,null,null,null,""]
[null,null,null,null,null,null,null,null,null,null,null,null,null,null,null,null,null,null,null,""]
[null,null,null,null,null,null,null,null,null,null,null,null,null,null,null,null,null,null,null,""]
[null,null,null,null,null,null,null,null,null,null,null,null,null,null,null,null,null,null,null,""]
[null,null,null,null,null,null,null,null,null,null,null,null,null,null,null,null,null,null,null,""]
[null,null,null,null,null,null,null,null,null,null,null,null,null,null,null,null,null,null,null,""]
[null,null,null,null,null,null,null,null,null,null,null,null,null,null,null,null,null,null,null,""]
[null,null,null,null,null,null,null,null,null,null,null,null,null,null,null,null,null,null,null,""]
[null,null,null,null,null,null,null,null,null,null,null,null,null,null,null,null,null,null,null,""]
[null,null,null,null,null,null,null,null,null,null,null,null,null,null,null,null,null,null,null,""]
[null,null,null,null,null,null,null,null,null,null,null,null,null,null,null,null,null,null,null,""]
[null,null,null,null,null,null,null,null,null,null,null,null,null,null,null,null,null,null,null,""]
[null,null,null,null,null,null,null,null,null,null,null,null,null,null,null,null,null,null,null,""]
[null,null,null,null,null,null,null,null,null,null,null,null,null,null,null,null,null,null,null,""]
[null,null,null,null,null,null,null,null,null,null,null,null,null,null,null,null,null,null,null,""]
[null,null,null,null,null,null,null,null,null,null,null,null,null,null,null,null,null,null,null,""]
[null,null,null,null,null,null,null,null,null,null,null,null,null,null,null,null,null,null,null,""]
[null,null,null,null,null,null,null,null,null,null,null,null,null,null,null,null,null,null,null,""]
[null,null,null,null,null,null,null,null,null,null,null,null,null,null,null,null,null,null,null,""]
[null,null,null,null,null,null,null,null,null,null,null,null,null,null,null,null,null,null,null,""]
[null,null,null,null,null,null,null,null,null,null,null,null,null,null,null,null,null,null,null,""]
[null,null,null,null,null,null,null,null,null,null,null,null,null,null,null,null,null,null,null,""]
[null,null,null,null,null,null,null,null,null,null,null,null,null,null,null,null,null,null,null,""]
[null,null,null,null,null,null,null,null,null,null,null,null,null,null,null,null,null,null,null,""]
[null,null,null,null,null,null,null,null,null,null,null,null,null,null,null,null,null,null,null,""]
[null,null,null,null,null,null,null,null,null,null,null,null,null,null,null,null,null,null,null,""]
[null,null,null,null,null,null,null,null,null,null,null,null,null,null,null,null,null,null,null,""]
[null,null,null,null,null,null,null,null,null,null,null,null,null,null,null,null,null,null,null,""]
[null,null,null,null,null,null,null,null,null,null,null,null,null,null,null,null,null,null,null,""]
[null,null,null,null,null,null,null,null,null,null,null,null,null,null,null,null,null,null,null,""]
[null,null,null,null,null,null,null,null,null,null,null,null,null,null,null,null,null,null,null,""]
[null,null,null,null,null,null,null,null,null,null,null,null,null,null,null,null,null,null,null,""]
[null,null,null,null,null,null,null,null,null,null,null,null,null,null,null,null,null,null,null,""]
[null,null,null,null,null,null,null,null,null,null,null,null,null,null,null,null,null,null,null,""]
[null,null,null,null,null,null,null,null,null,null,null,null,null,null,null,null,null,null,null,""]
[null,null,null,null,null,null,null,null,null,null,null,null,null,null,null,null,null,null,null,""]
[null,null,null,null,null,null,null,null,null,null,null,null,null,null,null,null,null,null,null,""]
[null,null,null,null,null,null,null,null,null,null,null,null,null,null,null,null,null,null,null,""]
[null,null,null,null,null,null,null,null,null,null,null,null,null,null,null,null,null,null,null,""]
[null,null,null,null,null,null,null,null,null,null,null,null,null,null,null,null,null,null,null,""]
[null,null,null,null,null,null,null,null,null,null,null,null,null,null,null,null,null,null,null,""]
[null,null,null,null,null,null,null,null,null,null,null,null,null,null,null,null,null,null,null,""]
[null,null,null,null,null,null,null,null,null,null,null,null,null,null,null,null,null,null,null,""]
[null,null,null,null,null,null,null,null,null,null,null,null,null,null,null,null,null,null,null,""]
[null,null,null,null,null,null,null,null,null,null,null,null,null,null,null,null,null,null,null,""]
[null,null,null,null,null,null,null,null,null,null,null,null,null,null,null,null,null,null,null,""]
[null,null,null,null,null,null,null,null,null,null,null,null,null,null,null,null,null,null,null,""]
[null,null,null,null,null,null,null,null,null,null,null,null,null,null,null,null,null,null,null,""]
[null,null,null,null,null,null,null,null,null,null,null,null,null,null,null,null,null,null,null,""]
[null,null,null,null,null,null,null,null,null,null,null,null,null,null,null,null,null,null,null,""]
[null,null,null,null,null,null,null,null,null,null,null,null,null,null,null,null,null,null,null,""]
[null,null,null,null,null,null,null,null,null,null,null,null,null,null,null,null,null,null,null,""]
[null,null,null,null,null,null,null,null,null,null,null,null,null,null,null,null,null,null,null,{"$f":"IF(OR(H532=\"CommPortal\",H532=\"CommPortal No VM\"),(LEFT(Customer_Company_Name,2)&\"$\"&S532&\"!\"),\"\")","v":""}]
[null,null,null,null,null,null,null,null,null,null,null,null,null,null,null,null,null,null,null,""]
[null,null,null,null,null,null,null,null,null,null,null,null,null,null,null,null,null,null,null,""]
[null,null,null,null,null,null,null,null,null,null,null,null,null,null,null,null,null,null,null,""]
[null,null,null,null,null,null,null,null,null,null,null,null,null,null,null,null,null,null,null,""]
[null,null,null,null,null,null,null,null,null,null,null,null,null,null,null,null,null,null,null,""]
[null,null,null,null,null,null,null,null,null,null,null,null,null,null,null,null,null,null,null,""]
[null,null,null,null,null,null,null,null,null,null,null,null,null,null,null,null,null,null,null,""]
[null,null,null,null,null,null,null,null,null,null,null,null,null,null,null,null,null,null,null,""]
[null,null,null,null,null,null,null,null,null,null,null,null,null,null,null,null,null,null,null,""]
[null,null,null,null,null,null,null,null,null,null,null,null,null,null,null,null,null,null,null,""]
[null,null,null,null,null,null,null,null,null,null,null,null,null,null,null,null,null,null,null,""]
[null,null,null,null,null,null,null,null,null,null,null,null,null,null,null,null,null,null,null,""]
[null,null,null,null,null,null,null,null,null,null,null,null,null,null,null,null,null,null,null,""]
[null,null,null,null,null,null,null,null,null,null,null,null,null,null,null,null,null,null,null,""]
[null,null,null,null,null,null,null,null,null,null,null,null,null,null,null,null,null,null,null,""]
[null,null,null,null,null,null,null,null,null,null,null,null,null,null,null,null,null,null,null,""]
[null,null,null,null,null,null,null,null,null,null,null,null,null,null,null,null,null,null,null,""]
[null,null,null,null,null,null,null,null,null,null,null,null,null,null,null,null,null,null,null,""]
[null,null,null,null,null,null,null,null,null,null,null,null,null,null,null,null,null,null,null,""]
[null,null,null,null,null,null,null,null,null,null,null,null,null,null,null,null,null,null,null,""]
[null,null,null,null,null,null,null,null,null,null,null,null,null,null,null,null,null,null,null,""]
[null,null,null,null,null,null,null,null,null,null,null,null,null,null,null,null,null,null,null,""]
[null,null,null,null,null,null,null,null,null,null,null,null,null,null,null,null,null,null,null,""]
[null,null,null,null,null,null,null,null,null,null,null,null,null,null,null,null,null,null,null,""]
[null,null,null,null,null,null,null,null,null,null,null,null,null,null,null,null,null,null,null,""]
[null,null,null,null,null,null,null,null,null,null,null,null,null,null,null,null,null,null,null,""]
[null,null,null,null,null,null,null,null,null,null,null,null,null,null,null,null,null,null,null,""]
[null,null,null,null,null,null,null,null,null,null,null,null,null,null,null,null,null,null,null,""]
[null,null,null,null,null,null,null,null,null,null,null,null,null,null,null,null,null,null,null,""]
[null,null,null,null,null,null,null,null,null,null,null,null,null,null,null,null,null,null,null,""]
[null,null,null,null,null,null,null,null,null,null,null,null,null,null,null,null,null,null,null,""]
[null,null,null,null,null,null,null,null,null,null,null,null,null,null,null,null,null,null,null,""]
[null,null,null,null,null,null,null,null,null,null,null,null,null,null,null,null,null,null,null,""]
[null,null,null,null,null,null,null,null,null,null,null,null,null,null,null,null,null,null,null,""]
[null,null,null,null,null,null,null,null,null,null,null,null,null,null,null,null,null,null,null,""]
[null,null,null,null,null,null,null,null,null,null,null,null,null,null,null,null,null,null,null,""]
[null,null,null,null,null,null,null,null,null,null,null,null,null,null,null,null,null,null,null,""]
[null,null,null,null,null,null,null,null,null,null,null,null,null,null,null,null,null,null,null,""]
[null,null,null,null,null,null,null,null,null,null,null,null,null,null,null,null,null,null,null,""]
[null,null,null,null,null,null,null,null,null,null,null,null,null,null,null,null,null,null,null,""]
[null,null,null,null,null,null,null,null,null,null,null,null,null,null,null,null,null,null,null,""]
[null,null,null,null,null,null,null,null,null,null,null,null,null,null,null,null,null,null,null,""]
[null,null,null,null,null,null,null,null,null,null,null,null,null,null,null,null,null,null,null,""]
[null,null,null,null,null,null,null,null,null,null,null,null,null,null,null,null,null,null,null,""]
[null,null,null,null,null,null,null,null,null,null,null,null,null,null,null,null,null,null,null,""]
[null,null,null,null,null,null,null,null,null,null,null,null,null,null,null,null,null,null,null,""]
[null,null,null,null,null,null,null,null,null,null,null,null,null,null,null,null,null,null,null,""]
[null,null,null,null,null,null,null,null,null,null,null,null,null,null,null,null,null,null,null,""]
[null,null,null,null,null,null,null,null,null,null,null,null,null,null,null,null,null,null,null,""]
[null,null,null,null,null,null,null,null,null,null,null,null,null,null,null,null,null,null,null,""]
[null,null,null,null,null,null,null,null,null,null,null,null,null,null,null,null,null,null,null,""]
[null,null,null,null,null,null,null,null,null,null,null,null,null,null,null,null,null,null,null,""]
[null,null,null,null,null,null,null,null,null,null,null,null,null,null,null,null,null,null,null,""]
[null,null,null,null,null,null,null,null,null,null,null,null,null,null,null,null,null,null,null,""]
[null,null,null,null,null,null,null,null,null,null,null,null,null,null,null,null,null,null,null,""]
[null,null,null,null,null,null,null,null,null,null,null,null,null,null,null,null,null,null,null,""]
[null,null,null,null,null,null,null,null,null,null,null,null,null,null,null,null,null,null,null,""]
[null,null,null,null,null,null,null,null,null,null,null,null,null,null,null,null,null,null,null,""]
[null,null,null,null,null,null,null,null,null,null,null,null,null,null,null,null,null,null,null,""]
[null,null,null,null,null,null,null,null,null,null,null,null,null,null,null,null,null,null,null,""]
[null,null,null,null,null,null,null,null,null,null,null,null,null,null,null,null,null,null,null,""]
[null,null,null,null,null,null,null,null,null,null,null,null,null,null,null,null,null,null,null,""]
[null,null,null,null,null,null,null,null,null,null,null,null,null,null,null,null,null,null,null,""]
[null,null,null,null,null,null,null,null,null,null,null,null,null,null,null,null,null,null,null,{"$f":"IF(OR(H596=\"CommPortal\",H596=\"CommPortal No VM\"),(LEFT(Customer_Company_Name,2)&\"$\"&S596&\"!\"),\"\")","v":""}]
[null,null,null,null,null,null,null,null,null,null,null,null,null,null,null,null,null,null,null,""]
[null,null,null,null,null,null,null,null,null,null,null,null,null,null,null,null,null,null,null,""]
[null,null,null,null,null,null,null,null,null,null,null,null,null,null,null,null,null,null,null,""]
[null,null,null,null,null,null,null,null,null,null,null,null,null,null,null,null,null,null,null,""]
[null,null,null,null,null,null,null,null,null,null,null,null,null,null,null,null,null,null,null,""]
[null,null,null,null,null,null,null,null,null,null,null,null,null,null,null,null,null,null,null,""]
[null,null,null,null,null,null,null,null,null,null,null,null,null,null,null,null,null,null,null,""]
[null,null,null,null,null,null,null,null,null,null,null,null,null,null,null,null,null,null,null,""]
[null,null,null,null,null,null,null,null,null,null,null,null,null,null,null,null,null,null,null,""]
[null,null,null,null,null,null,null,null,null,null,null,null,null,null,null,null,null,null,null,""]
[null,null,null,null,null,null,null,null,null,null,null,null,null,null,null,null,null,null,null,""]
[null,null,null,null,null,null,null,null,null,null,null,null,null,null,null,null,null,null,null,""]
[null,null,null,null,null,null,null,null,null,null,null,null,null,null,null,null,null,null,null,""]
[null,null,null,null,null,null,null,null,null,null,null,null,null,null,null,null,null,null,null,""]
[null,null,null,null,null,null,null,null,null,null,null,null,null,null,null,null,null,null,null,""]
[null,null,null,null,null,null,null,null,null,null,null,null,null,null,null,null,null,null,null,""]
[null,null,null,null,null,null,null,null,null,null,null,null,null,null,null,null,null,null,null,""]
[null,null,null,null,null,null,null,null,null,null,null,null,null,null,null,null,null,null,null,""]
[null,null,null,null,null,null,null,null,null,null,null,null,null,null,null,null,null,null,null,""]
[null,null,null,null,null,null,null,null,null,null,null,null,null,null,null,null,null,null,null,""]
[null,null,null,null,null,null,null,null,null,null,null,null,null,null,null,null,null,null,null,""]
[null,null,null,null,null,null,null,null,null,null,null,null,null,null,null,null,null,null,null,""]
[null,null,null,null,null,null,null,null,null,null,null,null,null,null,null,null,null,null,null,""]
[null,null,null,null,null,null,null,null,null,null,null,null,null,null,null,null,null,null,null,""]
[null,null,null,null,null,null,null,null,null,null,null,null,null,null,null,null,null,null,null,""]

{"sheet":"LOA Form","index":1,"n_rows":49,"n_cols":9,"rows_kept":49,"cut":false,"hidden":false,"merged":[]}
[null,null,null,null,null,null,null,null,"Form: A-LOA"]
[null,null,null,null,null,null,null,null,"Letter Of Agency"]
[null,null,null,null,null,null,null,null,"v.3"]
[]
[]
[]
[]
[]
[]
[]
[]
[]
[]
[]
[]
[]
[]
[]
[]
[]
[]
[]
[]
[]
[]
[]
[null,"Current Carrier:",null,null,null,null,null,"Total Disconnet Post Port?:"]
[null,"BTN:",null,null,null,"New BTN:"]
[null,"Account Number:",null,null,null,"PIN:"]
[null,"Customer Name:"]
[null,"Authorizing Name:"]
[null,"Service Address 1:"]
[null,"Service Address 2:",null,null,null,"City:"]
[null,"State:",null,null,null,"Zip:"]
[]
["TN1:",null,null,"TN10:",null,null,"TN19:"]
["TN2:",null,null,"TN11:",null,null,"TN20:"]
["TN3:",null,null,"TN12:",null,null,"TN21:"]
["TN4:",null,null,"TN13:",null,null,"TN22:"]
["TN5:",null,null,"TN14:",null,null,"TN23:"]
["TN6:",null,null,"TN15:",null,null,"TN24:"]
["TN7:",null,null,"TN16:",null,null,"TN25:"]
["TN8:",null,null,"TN17:",null,null,"TN26:"]
["TN9:",null,null,"TN18:",null,null,"TN27:"]
[]
["Signature:",null,null,null,null,"Date:"]
[]
[null,null,null,null,"I understand that by signing above, the preferred provider for the telecommunications service(s)"]
[null,null,null,null," specified will be changed for the telephone number(s) specified above."]

{"sheet":"Order Inventory","index":2,"n_rows":234,"n_cols":13,"rows_kept":234,"cut":false,"hidden":false,"merged":[]}
["Partner:",{"$f":"('Business Group Provisioning'!C9)","v":" "}]
["Customer Business Group:",{"$f":"('Business Group Provisioning'!C10)","v":" "}]
["Order Type:",{"$f":"('Business Group Provisioning'!C15)","v":"Production"}]
[]
["User Line",{"$f":"COUNTIF('Business Group Provisioning'!G20:G220,A5)","v":0}]
["User Line w/Accession-M",{"$f":"COUNTIF('Business Group Provisioning'!G20:G220,A6)","v":0}]
["User Line w/Accession-D",{"$f":"COUNTIF('Business Group Provisioning'!G20:G220,A7)","v":0}]
["User Line w/Accession-MD",{"$f":"COUNTIF('Business Group Provisioning'!G20:G220,A8)","v":0}]
["Auto Attendant",{"$f":"COUNTIF('Business Group Provisioning'!G20:G220,A9)","v":0}]
["MADN",{"$f":"COUNTIF('Business Group Provisioning'!G20:G220,A10)","v":0}]
["MLHG",{"$f":"COUNTIF('Business Group Provisioning'!G20:G220,A11)","v":0}]
["Non-Registering/Forwarding",{"$f":"COUNTIF('Business Group Provisioning'!G20:G220,A12)","v":0}]
["Forked",{"$f":"COUNTIF('Business Group Provisioning'!G20:G220,A13)","v":0}]
["SIP Trunking - Config Pilot",{"$f":"COUNTIF('Business Group Provisioning'!G20:G220,A14)","v":0}]
["SIP Trunking - Registering Pilot",{"$f":"COUNTIF('Business Group Provisioning'!G20:G200,A15)","v":0}]
["SIP Trunking Call Paths",{"$f":"('Business Group Provisioning'!C14)","v":0}]
["SIP Trunking - DID",{"$f":"COUNTIF('Business Group Provisioning'!G20:G200,A17)","v":0}]
["Other",{"$f":"COUNTIF('Business Group Provisioning'!G20:G200,A18)","v":0}]
["Temporary Forward-To",{"$f":"COUNTIF('Business Group Provisioning'!G20:G200,A19)","v":0}]
["ICM",{"$f":"COUNTIF('Business Group Provisioning'!G20:G200,A20)","v":0}]
["Conf Bridge",{"$f":"COUNTIF('Business Group Provisioning'!G20:G200,A21)","v":0}]
["Easy Attendant",{"$f":"COUNTIF('Business Group Provisioning'!G20:G200,A22)","v":0}]
["Virtual VM",{"$f":"COUNTIF('Business Group Provisioning'!G20:G200,A23)","v":0}]
[]
["E911",{"$f":"COUNTIF('Business Group Provisioning'!P20:P220,\"Yes\")","v":1},null,{"$f":"IF(LEFT(('Business Group Provisioning'!P20),3)=\"Yes\",('Business Group Provisioning'!B20),\"\")","v":0},{"$f":"IF(LEFT(('Business Group Provisioning'!P21),3)=\"Yes\",('Business Group Provisioning'!B21),\"\")","v":""},{"$f":"IF(LEFT(('Business Group Provisioning'!P22),3)=\"Yes\",('Business Group Provisioning'!B22),\"\")","v":""},{"$f":"IF(LEFT(('Business Group Provisioning'!P23),3)=\"Yes\",('Business Group Provisioning'!B23),\"\")","v":""},{"$f":"IF(LEFT(('Business Group Provisioning'!P24),3)=\"Yes\",('Business Group Provisioning'!B24),\"\")","v":""},{"$f":"IF(LEFT(('Business Group Provisioning'!P25),3)=\"Yes\",('Business Group Provisioning'!B25),\"\")","v":""},{"$f":"IF(LEFT(('Business Group Provisioning'!P26),3)=\"Yes\",('Business Group Provisioning'!B26),\"\")","v":""},{"$f":"IF(LEFT(('Business Group Provisioning'!P27),3)=\"Yes\",('Business Group Provisioning'!B27),\"\")","v":""},{"$f":"IF(LEFT(('Business Group Provisioning'!P28),3)=\"Yes\",('Business Group Provisioning'!B28),\"\")","v":""},{"$f":"IF(LEFT(('Business Group Provisioning'!P29),3)=\"Yes\",('Business Group Provisioning'!B29),\"\")","v":""}]
["WP411",{"$f":"COUNTIF('Business Group Provisioning'!Q20:Q220,\"Yes\")","v":0},null,{"$f":"IF(LEFT(('Business Group Provisioning'!Q20),3)=\"Yes\",('Business Group Provisioning'!B20),\"\")","v":""},{"$f":"IF(LEFT(('Business Group Provisioning'!Q21),3)=\"Yes\",('Business Group Provisioning'!B21),\"\")","v":""},{"$f":"IF(LEFT(('Business Group Provisioning'!Q22),3)=\"Yes\",('Business Group Provisioning'!B22),\"\")","v":""},{"$f":"IF(LEFT(('Business Group Provisioning'!Q23),3)=\"Yes\",('Business Group Provisioning'!B23),\"\")","v":""},{"$f":"IF(LEFT(('Business Group Provisioning'!Q24),3)=\"Yes\",('Business Group Provisioning'!B24),\"\")","v":""},{"$f":"IF(LEFT(('Business Group Provisioning'!Q25),3)=\"Yes\",('Business Group Provisioning'!B25),\"\")","v":""},{"$f":"IF(LEFT(('Business Group Provisioning'!Q26),3)=\"Yes\",('Business Group Provisioning'!B26),\"\")","v":""},{"$f":"IF(LEFT(('Business Group Provisioning'!Q27),3)=\"Yes\",('Business Group Provisioning'!B27),\"\")","v":""},{"$f":"IF(LEFT(('Business Group Provisioning'!Q28),3)=\"Yes\",('Business Group Provisioning'!B28),\"\")","v":""},{"$f":"IF(LEFT(('Business Group Provisioning'!Q29),3)=\"Yes\",('Business Group Provisioning'!B29),\"\")","v":""}]
["SMS Texting",{"$f":"COUNTIF('Business Group Provisioning'!V20:V250,\"Yes\")","v":0}]
["Click-To-Dial",{"$f":"COUNTIF('Business Group Provisioning'!W20:W250,\"Yes\")","v":0}]
["Ported DID's",{"$f":"COUNTIF('Business Group Provisioning'!C20:C220,\"Ported\")","v":0}]
["New DID's",{"$f":"COUNTIF('Business Group Provisioning'!C20:C220,\"New DID\")","v":0}]
[]
[]
["DID's / TFN's:",{"$f":"IF(LEFT(('Business Group Provisioning'!B20),3)=\"999\",\"\",('Business Group Provisioning'!B20))","v":0}]
[null,{"$f":"IF(LEFT(('Business Group Provisioning'!B21),3)=\"999\",\"\",('Business Group Provisioning'!B21))","v":0}]
[null,{"$f":"IF(LEFT(('Business Group Provisioning'!B22),3)=\"999\",\"\",('Business Group Provisioning'!B22))","v":0}]
[null,{"$f":"IF(LEFT(('Business Group Provisioning'!B23),3)=\"999\",\"\",('Business Group Provisioning'!B23))","v":0}]
[null,{"$f":"IF(LEFT(('Business Group Provisioning'!B24),3)=\"999\",\"\",('Business Group Provisioning'!B24))","v":0}]
[null,{"$f":"IF(LEFT(('Business Group Provisioning'!B25),3)=\"999\",\"\",('Business Group Provisioning'!B25))","v":0}]
[null,{"$f":"IF(LEFT(('Business Group Provisioning'!B26),3)=\"999\",\"\",('Business Group Provisioning'!B26))","v":0}]
[null,{"$f":"IF(LEFT(('Business Group Provisioning'!B27),3)=\"999\",\"\",('Business Group Provisioning'!B27))","v":0}]
[null,{"$f":"IF(LEFT(('Business Group Provisioning'!B28),3)=\"999\",\"\",('Business Group Provisioning'!B28))","v":0}]
[null,{"$f":"IF(LEFT(('Business Group Provisioning'!B29),3)=\"999\",\"\",('Business Group Provisioning'!B29))","v":0}]
[null,{"$f":"IF(LEFT(('Business Group Provisioning'!B30),3)=\"999\",\"\",('Business Group Provisioning'!B30))","v":0}]
[null,{"$f":"IF(LEFT(('Business Group Provisioning'!B31),3)=\"999\",\"\",('Business Group Provisioning'!B31))","v":0}]
[null,{"$f":"IF(LEFT(('Business Group Provisioning'!B32),3)=\"999\",\"\",('Business Group Provisioning'!B32))","v":0}]
[null,{"$f":"IF(LEFT(('Business Group Provisioning'!B33),3)=\"999\",\"\",('Business Group Provisioning'!B33))","v":0}]
[null,{"$f":"IF(LEFT(('Business Group Provisioning'!B34),3)=\"999\",\"\",('Business Group Provisioning'!B34))","v":0}]
[null,{"$f":"IF(LEFT(('Business Group Provisioning'!B35),3)=\"999\",\"\",('Business Group Provisioning'!B35))","v":0}]
[null,{"$f":"IF(LEFT(('Business Group Provisioning'!B36),3)=\"999\",\"\",('Business Group Provisioning'!B36))","v":0}]
[null,{"$f":"IF(LEFT(('Business Group Provisioning'!B37),3)=\"999\",\"\",('Business Group Provisioning'!B37))","v":0}]
[null,{"$f":"IF(LEFT(('Business Group Provisioning'!B38),3)=\"999\",\"\",('Business Group Provisioning'!B38))","v":0}]
[null,{"$f":"IF(LEFT(('Business Group Provisioning'!B39),3)=\"999\",\"\",('Business Group Provisioning'!B39))","v":0}]
[null,{"$f":"IF(LEFT(('Business Group Provisioning'!B40),3)=\"999\",\"\",('Business Group Provisioning'!B40))","v":0}]
[null,{"$f":"IF(LEFT(('Business Group Provisioning'!B41),3)=\"999\",\"\",('Business Group Provisioning'!B41))","v":0}]
[null,{"$f":"IF(LEFT(('Business Group Provisioning'!B42),3)=\"999\",\"\",('Business Group Provisioning'!B42))","v":0}]
[null,{"$f":"IF(LEFT(('Business Group Provisioning'!B43),3)=\"999\",\"\",('Business Group Provisioning'!B43))","v":0}]
[null,{"$f":"IF(LEFT(('Business Group Provisioning'!B44),3)=\"999\",\"\",('Business Group Provisioning'!B44))","v":0}]
[null,{"$f":"IF(LEFT(('Business Group Provisioning'!B45),3)=\"999\",\"\",('Business Group Provisioning'!B45))","v":0}]
[null,{"$f":"IF(LEFT(('Business Group Provisioning'!B46),3)=\"999\",\"\",('Business Group Provisioning'!B46))","v":0}]
[null,{"$f":"IF(LEFT(('Business Group Provisioning'!B47),3)=\"999\",\"\",('Business Group Provisioning'!B47))","v":0}]
[null,{"$f":"IF(LEFT(('Business Group Provisioning'!B48),3)=\"999\",\"\",('Business Group Provisioning'!B48))","v":0}]
[null,{"$f":"IF(LEFT(('Business Group Provisioning'!B49),3)=\"999\",\"\",('Business Group Provisioning'!B49))","v":0}]
[null,{"$f":"IF(LEFT(('Business Group Provisioning'!B50),3)=\"999\",\"\",('Business Group Provisioning'!B50))","v":0}]
[null,{"$f":"IF(LEFT(('Business Group Provisioning'!B51),3)=\"999\",\"\",('Business Group Provisioning'!B51))","v":0}]
[null,{"$f":"IF(LEFT(('Business Group Provisioning'!B52),3)=\"999\",\"\",('Business Group Provisioning'!B52))","v":0}]
[null,{"$f":"IF(LEFT(('Business Group Provisioning'!B53),3)=\"999\",\"\",('Business Group Provisioning'!B53))","v":0}]
[null,{"$f":"IF(LEFT(('Business Group Provisioning'!B54),3)=\"999\",\"\",('Business Group Provisioning'!B54))","v":0}]
[null,{"$f":"IF(LEFT(('Business Group Provisioning'!B55),3)=\"999\",\"\",('Business Group Provisioning'!B55))","v":0}]
[null,{"$f":"IF(LEFT(('Business Group Provisioning'!B56),3)=\"999\",\"\",('Business Group Provisioning'!B56))","v":0}]
[null,{"$f":"IF(LEFT(('Business Group Provisioning'!B57),3)=\"999\",\"\",('Business Group Provisioning'!B57))","v":0}]
[null,{"$f":"IF(LEFT(('Business Group Provisioning'!B58),3)=\"999\",\"\",('Business Group Provisioning'!B58))","v":0}]
[null,{"$f":"IF(LEFT(('Business Group Provisioning'!B59),3)=\"999\",\"\",('Business Group Provisioning'!B59))","v":0}]
[null,{"$f":"IF(LEFT(('Business Group Provisioning'!B60),3)=\"999\",\"\",('Business Group Provisioning'!B60))","v":0}]
[null,{"$f":"IF(LEFT(('Business Group Provisioning'!B61),3)=\"999\",\"\",('Business Group Provisioning'!B61))","v":0}]
[null,{"$f":"IF(LEFT(('Business Group Provisioning'!B62),3)=\"999\",\"\",('Business Group Provisioning'!B62))","v":0}]
[null,{"$f":"IF(LEFT(('Business Group Provisioning'!B63),3)=\"999\",\"\",('Business Group Provisioning'!B63))","v":0}]
[null,{"$f":"IF(LEFT(('Business Group Provisioning'!B64),3)=\"999\",\"\",('Business Group Provisioning'!B64))","v":0}]
[null,{"$f":"IF(LEFT(('Business Group Provisioning'!B65),3)=\"999\",\"\",('Business Group Provisioning'!B65))","v":0}]
[null,{"$f":"IF(LEFT(('Business Group Provisioning'!B66),3)=\"999\",\"\",('Business Group Provisioning'!B66))","v":0}]
[null,{"$f":"IF(LEFT(('Business Group Provisioning'!B67),3)=\"999\",\"\",('Business Group Provisioning'!B67))","v":0}]
[null,{"$f":"IF(LEFT(('Business Group Provisioning'!B68),3)=\"999\",\"\",('Business Group Provisioning'!B68))","v":0}]
[null,{"$f":"IF(LEFT(('Business Group Provisioning'!B69),3)=\"999\",\"\",('Business Group Provisioning'!B69))","v":0}]
[null,{"$f":"IF(LEFT(('Business Group Provisioning'!B70),3)=\"999\",\"\",('Business Group Provisioning'!B70))","v":0}]
[null,{"$f":"IF(LEFT(('Business Group Provisioning'!B71),3)=\"999\",\"\",('Business Group Provisioning'!B71))","v":0}]
[null,{"$f":"IF(LEFT(('Business Group Provisioning'!B72),3)=\"999\",\"\",('Business Group Provisioning'!B72))","v":0}]
[null,{"$f":"IF(LEFT(('Business Group Provisioning'!B73),3)=\"999\",\"\",('Business Group Provisioning'!B73))","v":0}]
[null,{"$f":"IF(LEFT(('Business Group Provisioning'!B74),3)=\"999\",\"\",('Business Group Provisioning'!B74))","v":0}]
[null,{"$f":"IF(LEFT(('Business Group Provisioning'!B75),3)=\"999\",\"\",('Business Group Provisioning'!B75))","v":0}]
[null,{"$f":"IF(LEFT(('Business Group Provisioning'!B76),3)=\"999\",\"\",('Business Group Provisioning'!B76))","v":0}]
[null,{"$f":"IF(LEFT(('Business Group Provisioning'!B77),3)=\"999\",\"\",('Business Group Provisioning'!B77))","v":0}]
[null,{"$f":"IF(LEFT(('Business Group Provisioning'!B78),3)=\"999\",\"\",('Business Group Provisioning'!B78))","v":0}]
[null,{"$f":"IF(LEFT(('Business Group Provisioning'!B79),3)=\"999\",\"\",('Business Group Provisioning'!B79))","v":0}]
[null,{"$f":"IF(LEFT(('Business Group Provisioning'!B80),3)=\"999\",\"\",('Business Group Provisioning'!B80))","v":0}]
[null,{"$f":"IF(LEFT(('Business Group Provisioning'!B81),3)=\"999\",\"\",('Business Group Provisioning'!B81))","v":0}]
[null,{"$f":"IF(LEFT(('Business Group Provisioning'!B82),3)=\"999\",\"\",('Business Group Provisioning'!B82))","v":0}]
[null,{"$f":"IF(LEFT(('Business Group Provisioning'!B83),3)=\"999\",\"\",('Business Group Provisioning'!B83))","v":0}]
[null,{"$f":"IF(LEFT(('Business Group Provisioning'!B84),3)=\"999\",\"\",('Business Group Provisioning'!B84))","v":0}]
[null,{"$f":"IF(LEFT(('Business Group Provisioning'!B85),3)=\"999\",\"\",('Business Group Provisioning'!B85))","v":0}]
[null,{"$f":"IF(LEFT(('Business Group Provisioning'!B86),3)=\"999\",\"\",('Business Group Provisioning'!B86))","v":0}]
[null,{"$f":"IF(LEFT(('Business Group Provisioning'!B87),3)=\"999\",\"\",('Business Group Provisioning'!B87))","v":0}]
[null,{"$f":"IF(LEFT(('Business Group Provisioning'!B88),3)=\"999\",\"\",('Business Group Provisioning'!B88))","v":0}]
[null,{"$f":"IF(LEFT(('Business Group Provisioning'!B89),3)=\"999\",\"\",('Business Group Provisioning'!B89))","v":0}]
[null,{"$f":"IF(LEFT(('Business Group Provisioning'!B90),3)=\"999\",\"\",('Business Group Provisioning'!B90))","v":0}]
[null,{"$f":"IF(LEFT(('Business Group Provisioning'!B91),3)=\"999\",\"\",('Business Group Provisioning'!B91))","v":0}]
[null,{"$f":"IF(LEFT(('Business Group Provisioning'!B92),3)=\"999\",\"\",('Business Group Provisioning'!B92))","v":0}]
[null,{"$f":"IF(LEFT(('Business Group Provisioning'!B93),3)=\"999\",\"\",('Business Group Provisioning'!B93))","v":0}]
[null,{"$f":"IF(LEFT(('Business Group Provisioning'!B94),3)=\"999\",\"\",('Business Group Provisioning'!B94))","v":0}]
[null,{"$f":"IF(LEFT(('Business Group Provisioning'!B95),3)=\"999\",\"\",('Business Group Provisioning'!B95))","v":0}]
[null,{"$f":"IF(LEFT(('Business Group Provisioning'!B96),3)=\"999\",\"\",('Business Group Provisioning'!B96))","v":0}]
[null,{"$f":"IF(LEFT(('Business Group Provisioning'!B97),3)=\"999\",\"\",('Business Group Provisioning'!B97))","v":0}]
[null,{"$f":"IF(LEFT(('Business Group Provisioning'!B98),3)=\"999\",\"\",('Business Group Provisioning'!B98))","v":0}]
[null,{"$f":"IF(LEFT(('Business Group Provisioning'!B99),3)=\"999\",\"\",('Business Group Provisioning'!B99))","v":0}]
[null,{"$f":"IF(LEFT(('Business Group Provisioning'!B100),3)=\"999\",\"\",('Business Group Provisioning'!B100))","v":0}]
[null,{"$f":"IF(LEFT(('Business Group Provisioning'!B101),3)=\"999\",\"\",('Business Group Provisioning'!B101))","v":0}]
[null,{"$f":"IF(LEFT(('Business Group Provisioning'!B102),3)=\"999\",\"\",('Business Group Provisioning'!B102))","v":0}]
[null,{"$f":"IF(LEFT(('Business Group Provisioning'!B103),3)=\"999\",\"\",('Business Group Provisioning'!B103))","v":0}]
[null,{"$f":"IF(LEFT(('Business Group Provisioning'!B104),3)=\"999\",\"\",('Business Group Provisioning'!B104))","v":0}]
[null,{"$f":"IF(LEFT(('Business Group Provisioning'!B105),3)=\"999\",\"\",('Business Group Provisioning'!B105))","v":0}]
[null,{"$f":"IF(LEFT(('Business Group Provisioning'!B106),3)=\"999\",\"\",('Business Group Provisioning'!B106))","v":0}]
[null,{"$f":"IF(LEFT(('Business Group Provisioning'!B107),3)=\"999\",\"\",('Business Group Provisioning'!B107))","v":0}]
[null,{"$f":"IF(LEFT(('Business Group Provisioning'!B108),3)=\"999\",\"\",('Business Group Provisioning'!B108))","v":0}]
[null,{"$f":"IF(LEFT(('Business Group Provisioning'!B109),3)=\"999\",\"\",('Business Group Provisioning'!B109))","v":0}]
[null,{"$f":"IF(LEFT(('Business Group Provisioning'!B110),3)=\"999\",\"\",('Business Group Provisioning'!B110))","v":0}]
[null,{"$f":"IF(LEFT(('Business Group Provisioning'!B111),3)=\"999\",\"\",('Business Group Provisioning'!B111))","v":0}]
[null,{"$f":"IF(LEFT(('Business Group Provisioning'!B112),3)=\"999\",\"\",('Business Group Provisioning'!B112))","v":0}]
[null,{"$f":"IF(LEFT(('Business Group Provisioning'!B113),3)=\"999\",\"\",('Business Group Provisioning'!B113))","v":0}]
[null,{"$f":"IF(LEFT(('Business Group Provisioning'!B114),3)=\"999\",\"\",('Business Group Provisioning'!B114))","v":0}]
[null,{"$f":"IF(LEFT(('Business Group Provisioning'!B115),3)=\"999\",\"\",('Business Group Provisioning'!B115))","v":0}]
[null,{"$f":"IF(LEFT(('Business Group Provisioning'!B116),3)=\"999\",\"\",('Business Group Provisioning'!B116))","v":0}]
[null,{"$f":"IF(LEFT(('Business Group Provisioning'!B117),3)=\"999\",\"\",('Business Group Provisioning'!B117))","v":0}]
[null,{"$f":"IF(LEFT(('Business Group Provisioning'!B118),3)=\"999\",\"\",('Business Group Provisioning'!B118))","v":0}]
[null,{"$f":"IF(LEFT(('Business Group Provisioning'!B119),3)=\"999\",\"\",('Business Group Provisioning'!B119))","v":0}]
[null,{"$f":"IF(LEFT(('Business Group Provisioning'!B120),3)=\"999\",\"\",('Business Group Provisioning'!B120))","v":0}]
[null,{"$f":"IF(LEFT(('Business Group Provisioning'!B121),3)=\"999\",\"\",('Business Group Provisioning'!B121))","v":0}]
[null,{"$f":"IF(LEFT(('Business Group Provisioning'!B122),3)=\"999\",\"\",('Business Group Provisioning'!B122))","v":0}]
[null,{"$f":"IF(LEFT(('Business Group Provisioning'!B123),3)=\"999\",\"\",('Business Group Provisioning'!B123))","v":0}]
[null,{"$f":"IF(LEFT(('Business Group Provisioning'!B124),3)=\"999\",\"\",('Business Group Provisioning'!B124))","v":0}]
[null,{"$f":"IF(LEFT(('Business Group Provisioning'!B125),3)=\"999\",\"\",('Business Group Provisioning'!B125))","v":0}]
[null,{"$f":"IF(LEFT(('Business Group Provisioning'!B126),3)=\"999\",\"\",('Business Group Provisioning'!B126))","v":0}]
[null,{"$f":"IF(LEFT(('Business Group Provisioning'!B127),3)=\"999\",\"\",('Business Group Provisioning'!B127))","v":0}]
[null,{"$f":"IF(LEFT(('Business Group Provisioning'!B128),3)=\"999\",\"\",('Business Group Provisioning'!B128))","v":0}]
[null,{"$f":"IF(LEFT(('Business Group Provisioning'!B129),3)=\"999\",\"\",('Business Group Provisioning'!B129))","v":0}]
[null,{"$f":"IF(LEFT(('Business Group Provisioning'!B130),3)=\"999\",\"\",('Business Group Provisioning'!B130))","v":0}]
[null,{"$f":"IF(LEFT(('Business Group Provisioning'!B131),3)=\"999\",\"\",('Business Group Provisioning'!B131))","v":0}]
[null,{"$f":"IF(LEFT(('Business Group Provisioning'!B132),3)=\"999\",\"\",('Business Group Provisioning'!B132))","v":0}]
[null,{"$f":"IF(LEFT(('Business Group Provisioning'!B133),3)=\"999\",\"\",('Business Group Provisioning'!B133))","v":0}]
[null,{"$f":"IF(LEFT(('Business Group Provisioning'!B134),3)=\"999\",\"\",('Business Group Provisioning'!B134))","v":0}]
[null,{"$f":"IF(LEFT(('Business Group Provisioning'!B135),3)=\"999\",\"\",('Business Group Provisioning'!B135))","v":0}]
[null,{"$f":"IF(LEFT(('Business Group Provisioning'!B136),3)=\"999\",\"\",('Business Group Provisioning'!B136))","v":0}]
[null,{"$f":"IF(LEFT(('Business Group Provisioning'!B137),3)=\"999\",\"\",('Business Group Provisioning'!B137))","v":0}]
[null,{"$f":"IF(LEFT(('Business Group Provisioning'!B138),3)=\"999\",\"\",('Business Group Provisioning'!B138))","v":0}]
[null,{"$f":"IF(LEFT(('Business Group Provisioning'!B139),3)=\"999\",\"\",('Business Group Provisioning'!B139))","v":0}]
[null,{"$f":"IF(LEFT(('Business Group Provisioning'!B140),3)=\"999\",\"\",('Business Group Provisioning'!B140))","v":0}]
[null,{"$f":"IF(LEFT(('Business Group Provisioning'!B141),3)=\"999\",\"\",('Business Group Provisioning'!B141))","v":0}]
[null,{"$f":"IF(LEFT(('Business Group Provisioning'!B142),3)=\"999\",\"\",('Business Group Provisioning'!B142))","v":0}]
[null,{"$f":"IF(LEFT(('Business Group Provisioning'!B143),3)=\"999\",\"\",('Business Group Provisioning'!B143))","v":0}]
[null,{"$f":"IF(LEFT(('Business Group Provisioning'!B144),3)=\"999\",\"\",('Business Group Provisioning'!B144))","v":0}]
[null,{"$f":"IF(LEFT(('Business Group Provisioning'!B145),3)=\"999\",\"\",('Business Group Provisioning'!B145))","v":0}]
[null,{"$f":"IF(LEFT(('Business Group Provisioning'!B146),3)=\"999\",\"\",('Business Group Provisioning'!B146))","v":0}]
[null,{"$f":"IF(LEFT(('Business Group Provisioning'!B147),3)=\"999\",\"\",('Business Group Provisioning'!B147))","v":0}]
[null,{"$f":"IF(LEFT(('Business Group Provisioning'!B148),3)=\"999\",\"\",('Business Group Provisioning'!B148))","v":0}]
[null,{"$f":"IF(LEFT(('Business Group Provisioning'!B149),3)=\"999\",\"\",('Business Group Provisioning'!B149))","v":0}]
[null,{"$f":"IF(LEFT(('Business Group Provisioning'!B150),3)=\"999\",\"\",('Business Group Provisioning'!B150))","v":0}]
[null,{"$f":"IF(LEFT(('Business Group Provisioning'!B151),3)=\"999\",\"\",('Business Group Provisioning'!B151))","v":0}]
[null,{"$f":"IF(LEFT(('Business Group Provisioning'!B152),3)=\"999\",\"\",('Business Group Provisioning'!B152))","v":0}]
[null,{"$f":"IF(LEFT(('Business Group Provisioning'!B153),3)=\"999\",\"\",('Business Group Provisioning'!B153))","v":0}]
[null,{"$f":"IF(LEFT(('Business Group Provisioning'!B154),3)=\"999\",\"\",('Business Group Provisioning'!B154))","v":0}]
[null,{"$f":"IF(LEFT(('Business Group Provisioning'!B155),3)=\"999\",\"\",('Business Group Provisioning'!B155))","v":0}]
[null,{"$f":"IF(LEFT(('Business Group Provisioning'!B156),3)=\"999\",\"\",('Business Group Provisioning'!B156))","v":0}]
[null,{"$f":"IF(LEFT(('Business Group Provisioning'!B157),3)=\"999\",\"\",('Business Group Provisioning'!B157))","v":0}]
[null,{"$f":"IF(LEFT(('Business Group Provisioning'!B158),3)=\"999\",\"\",('Business Group Provisioning'!B158))","v":0}]
[null,{"$f":"IF(LEFT(('Business Group Provisioning'!B159),3)=\"999\",\"\",('Business Group Provisioning'!B159))","v":0}]
[null,{"$f":"IF(LEFT(('Business Group Provisioning'!B160),3)=\"999\",\"\",('Business Group Provisioning'!B160))","v":0}]
[null,{"$f":"IF(LEFT(('Business Group Provisioning'!B161),3)=\"999\",\"\",('Business Group Provisioning'!B161))","v":0}]
[null,{"$f":"IF(LEFT(('Business Group Provisioning'!B162),3)=\"999\",\"\",('Business Group Provisioning'!B162))","v":0}]
[null,{"$f":"IF(LEFT(('Business Group Provisioning'!B163),3)=\"999\",\"\",('Business Group Provisioning'!B163))","v":0}]
[null,{"$f":"IF(LEFT(('Business Group Provisioning'!B164),3)=\"999\",\"\",('Business Group Provisioning'!B164))","v":0}]
[null,{"$f":"IF(LEFT(('Business Group Provisioning'!B165),3)=\"999\",\"\",('Business Group Provisioning'!B165))","v":0}]
[null,{"$f":"IF(LEFT(('Business Group Provisioning'!B166),3)=\"999\",\"\",('Business Group Provisioning'!B166))","v":0}]
[null,{"$f":"IF(LEFT(('Business Group Provisioning'!B167),3)=\"999\",\"\",('Business Group Provisioning'!B167))","v":0}]
[null,{"$f":"IF(LEFT(('Business Group Provisioning'!B168),3)=\"999\",\"\",('Business Group Provisioning'!B168))","v":0}]
[null,{"$f":"IF(LEFT(('Business Group Provisioning'!B169),3)=\"999\",\"\",('Business Group Provisioning'!B169))","v":0}]
[null,{"$f":"IF(LEFT(('Business Group Provisioning'!B170),3)=\"999\",\"\",('Business Group Provisioning'!B170))","v":0}]
[null,{"$f":"IF(LEFT(('Business Group Provisioning'!B171),3)=\"999\",\"\",('Business Group Provisioning'!B171))","v":0}]
[null,{"$f":"IF(LEFT(('Business Group Provisioning'!B172),3)=\"999\",\"\",('Business Group Provisioning'!B172))","v":0}]
[null,{"$f":"IF(LEFT(('Business Group Provisioning'!B173),3)=\"999\",\"\",('Business Group Provisioning'!B173))","v":0}]
[null,{"$f":"IF(LEFT(('Business Group Provisioning'!B174),3)=\"999\",\"\",('Business Group Provisioning'!B174))","v":0}]
[null,{"$f":"IF(LEFT(('Business Group Provisioning'!B175),3)=\"999\",\"\",('Business Group Provisioning'!B175))","v":0}]
[null,{"$f":"IF(LEFT(('Business Group Provisioning'!B176),3)=\"999\",\"\",('Business Group Provisioning'!B176))","v":0}]
[null,{"$f":"IF(LEFT(('Business Group Provisioning'!B177),3)=\"999\",\"\",('Business Group Provisioning'!B177))","v":0}]
[null,{"$f":"IF(LEFT(('Business Group Provisioning'!B178),3)=\"999\",\"\",('Business Group Provisioning'!B178))","v":0}]
[null,{"$f":"IF(LEFT(('Business Group Provisioning'!B179),3)=\"999\",\"\",('Business Group Provisioning'!B179))","v":0}]
[null,{"$f":"IF(LEFT(('Business Group Provisioning'!B180),3)=\"999\",\"\",('Business Group Provisioning'!B180))","v":0}]
[null,{"$f":"IF(LEFT(('Business Group Provisioning'!B181),3)=\"999\",\"\",('Business Group Provisioning'!B181))","v":0}]
[null,{"$f":"IF(LEFT(('Business Group Provisioning'!B182),3)=\"999\",\"\",('Business Group Provisioning'!B182))","v":0}]
[null,{"$f":"IF(LEFT(('Business Group Provisioning'!B183),3)=\"999\",\"\",('Business Group Provisioning'!B183))","v":0}]
[null,{"$f":"IF(LEFT(('Business Group Provisioning'!B184),3)=\"999\",\"\",('Business Group Provisioning'!B184))","v":0}]
[null,{"$f":"IF(LEFT(('Business Group Provisioning'!B185),3)=\"999\",\"\",('Business Group Provisioning'!B185))","v":0}]
[null,{"$f":"IF(LEFT(('Business Group Provisioning'!B186),3)=\"999\",\"\",('Business Group Provisioning'!B186))","v":0}]
[null,{"$f":"IF(LEFT(('Business Group Provisioning'!B187),3)=\"999\",\"\",('Business Group Provisioning'!B187))","v":0}]
[null,{"$f":"IF(LEFT(('Business Group Provisioning'!B188),3)=\"999\",\"\",('Business Group Provisioning'!B188))","v":0}]
[null,{"$f":"IF(LEFT(('Business Group Provisioning'!B189),3)=\"999\",\"\",('Business Group Provisioning'!B189))","v":0}]
[null,{"$f":"IF(LEFT(('Business Group Provisioning'!B190),3)=\"999\",\"\",('Business Group Provisioning'!B190))","v":0}]
[null,{"$f":"IF(LEFT(('Business Group Provisioning'!B191),3)=\"999\",\"\",('Business Group Provisioning'!B191))","v":0}]
[null,{"$f":"IF(LEFT(('Business Group Provisioning'!B192),3)=\"999\",\"\",('Business Group Provisioning'!B192))","v":0}]
[null,{"$f":"IF(LEFT(('Business Group Provisioning'!B193),3)=\"999\",\"\",('Business Group Provisioning'!B193))","v":0}]
[null,{"$f":"IF(LEFT(('Business Group Provisioning'!B194),3)=\"999\",\"\",('Business Group Provisioning'!B194))","v":0}]
[null,{"$f":"IF(LEFT(('Business Group Provisioning'!B195),3)=\"999\",\"\",('Business Group Provisioning'!B195))","v":0}]
[null,{"$f":"IF(LEFT(('Business Group Provisioning'!B196),3)=\"999\",\"\",('Business Group Provisioning'!B196))","v":0}]
[null,{"$f":"IF(LEFT(('Business Group Provisioning'!B197),3)=\"999\",\"\",('Business Group Provisioning'!B197))","v":0}]
[null,{"$f":"IF(LEFT(('Business Group Provisioning'!B198),3)=\"999\",\"\",('Business Group Provisioning'!B198))","v":0}]
[null,{"$f":"IF(LEFT(('Business Group Provisioning'!B199),3)=\"999\",\"\",('Business Group Provisioning'!B199))","v":0}]
[null,{"$f":"IF(LEFT(('Business Group Provisioning'!B200),3)=\"999\",\"\",('Business Group Provisioning'!B200))","v":0}]
[null,{"$f":"IF(LEFT(('Business Group Provisioning'!B201),3)=\"999\",\"\",('Business Group Provisioning'!B201))","v":0}]
[null,{"$f":"IF(LEFT(('Business Group Provisioning'!B202),3)=\"999\",\"\",('Business Group Provisioning'!B202))","v":0}]
[null,{"$f":"IF(LEFT(('Business Group Provisioning'!B203),3)=\"999\",\"\",('Business Group Provisioning'!B203))","v":0}]
[null,{"$f":"IF(LEFT(('Business Group Provisioning'!B204),3)=\"999\",\"\",('Business Group Provisioning'!B204))","v":0}]
[null,{"$f":"IF(LEFT(('Business Group Provisioning'!B205),3)=\"999\",\"\",('Business Group Provisioning'!B205))","v":0}]
[null,{"$f":"IF(LEFT(('Business Group Provisioning'!B206),3)=\"999\",\"\",('Business Group Provisioning'!B206))","v":0}]
[null,{"$f":"IF(LEFT(('Business Group Provisioning'!B207),3)=\"999\",\"\",('Business Group Provisioning'!B207))","v":0}]
[null,{"$f":"IF(LEFT(('Business Group Provisioning'!B208),3)=\"999\",\"\",('Business Group Provisioning'!B208))","v":0}]
[null,{"$f":"IF(LEFT(('Business Group Provisioning'!B209),3)=\"999\",\"\",('Business Group Provisioning'!B209))","v":0}]
[null,{"$f":"IF(LEFT(('Business Group Provisioning'!B210),3)=\"999\",\"\",('Business Group Provisioning'!B210))","v":0}]
[null,{"$f":"IF(LEFT(('Business Group Provisioning'!B211),3)=\"999\",\"\",('Business Group Provisioning'!B211))","v":0}]
[null,{"$f":"IF(LEFT(('Business Group Provisioning'!B212),3)=\"999\",\"\",('Business Group Provisioning'!B212))","v":0}]
[null,{"$f":"IF(LEFT(('Business Group Provisioning'!B213),3)=\"999\",\"\",('Business Group Provisioning'!B213))","v":0}]
[null,{"$f":"IF(LEFT(('Business Group Provisioning'!B214),3)=\"999\",\"\",('Business Group Provisioning'!B214))","v":0}]
[null,{"$f":"IF(LEFT(('Business Group Provisioning'!B215),3)=\"999\",\"\",('Business Group Provisioning'!B215))","v":0}]
[null,{"$f":"IF(LEFT(('Business Group Provisioning'!B216),3)=\"999\",\"\",('Business Group Provisioning'!B216))","v":0}]
[null,{"$f":"IF(LEFT(('Business Group Provisioning'!B217),3)=\"999\",\"\",('Business Group Provisioning'!B217))","v":0}]
[null,{"$f":"IF(LEFT(('Business Group Provisioning'!B218),3)=\"999\",\"\",('Business Group Provisioning'!B218))","v":0}]
[null,{"$f":"IF(LEFT(('Business Group Provisioning'!B219),3)=\"999\",\"\",('Business Group Provisioning'!B219))","v":0}]
[null,{"$f":"IF(LEFT(('Business Group Provisioning'!B220),3)=\"999\",\"\",('Business Group Provisioning'!B220))","v":0}]
[null,{"$f":"IF(LEFT(('Business Group Provisioning'!B221),3)=\"999\",\"\",('Business Group Provisioning'!B221))","v":0}]

{"sheet":"Links of Interest","index":3,"n_rows":32,"n_cols":13,"rows_kept":32,"cut":false,"hidden":false,"merged":[]}
["AKABIS LINKS"]
[]
["Akabis Partner Support"]
["http://www.akabis.com/akabis-partners.php"]
[]
["User CommPortal"]
["https://commportal.phoneovernet.net/gold/login.html"]
[]
["Business Group Administrator CommPortal"]
["https://commportal.phoneovernet.net/gold/bg/login.html"]
[]
["Call Recording"]
["http://callrecording.phoneovernet.net/orkweb/app"]
[]
["Customer Web Portal"]
["https://customer.akabis.com/iLogin.aspx"]
[]
["Partner Web Access"]
["https://partner.akabis.com/"]
[]
["MetaView Web CSR+"]
["http://mvw.phoneovernet.net:8087"]
[]
["USEFUL LINKS"]
[]
["Local Calling Guide"]
["http://www.localcallingguide.com/"]
[]
[]
["ADDITIONAL INFORMATION"]
[]
["Metaswitch Provisioining Server \"Kick-Off\":",null,null,null,null,"commportal.phoneovernet.net/sip-ps/",null,null,null,null,"or for Cisco: ",null,"commportal.phoneovernet.net/sip-ps/$MA.cfg"]

{"sheet":"Do Not Change!","index":4,"n_rows":148,"n_cols":40,"rows_kept":148,"cut":false,"hidden":false,"merged":[]}
["DO NOT CHANGE ANY VALUES ON THIS PAGE!"]
[]
[]
["VOICEMAIL",null,null,"USAGE",null,null,"TN SOURCE",null,null,"TIME ZONE",null,null,"HARDWARE MODELS",null,null,null,"CALL APPEARANCES",null,null,null,"YES/NO",null,null,"STATE LIST",null,null,"StepOne",null,"StepTwo",null,null,"AA_0",null,"ACTION",null,"ORDER TYPE",null,null,"LINE TYPE VM TYPE"]
["None",null,null,"User Line",null,null,"Ported",null,null,"Atlantic",null,null,"Aastra / Mitel 39i",null,null,null,2,null,null,null,"No",null,null,"AL",null,null,"Select one…",null,"Select one…",null,null,"Select one…",null,"Add",null,"Production",null,null,"Line Type","VM Type"]
["PoVM",null,null,"User Line w/Accession-M",null,null,"New DID",null,null,"Eastern",null,null,"Aastra / Mitel 53i",null,null,null,1,null,null,null,"Yes",null,null,"AK",null,null,"Auto Attendant",null,"Undefined",null,null,"Unused",null,"Change",null,"Demo Request",null,null,"User Line","CommPortal"]
["CommPortal",null,null,"User Line w/Accession-D",null,null,"PTN",null,null,"Central",null,null,"Aastra / Mitel 55i",null,null,null,3,null,null,null,null,null,null,"AZ",null,null,"MLHG1",null,"Forward to Extension",null,null,"####",null,"Delete",null,null,null,null,"User Line w/Accession-M","CommPortal"]
["Shared VM (Master)",null,null,"User Line w/Accession-MD",null,null,"New TFN",null,null,"Mountain",null,null,"Aastra / Mitel 57i",null,null,null,4,null,null,null,null,null,null,"AR",null,null,null,null,"Forward to MLHG",null,null,486,null,null,null,null,null,null,"User Line w/Accession-D","CommPortal"]
["Shared VM (Slave)",null,null,"Auto Attendant",null,null,"Existing",null,null,"Pacific",null,null,"Aastra / Mitel 57i CT",null,null,null,null,null,null,null,null,null,null,"CA",null,null,null,null,"Forward to Voicemail",null,null,"MLHG2",null,null,null,null,null,null,"User Line w/Accession-MD","CommPortal"]
["CommPortal No VM",null,null,"MADN",null,null,null,null,null,null,null,null,"Aastra / Mitel 6730i",null,null,null,null,null,null,null,null,null,null,"CO",null,null,null,null,null,null,null,null,null,null,null,null,null,null,"Auto Attendant","CommPortal No VM"]
[null,null,null,"MLHG",null,null,null,null,null,null,null,null,"Aastra / Mitel 6731i",null,null,null,null,null,null,null,null,null,null,"CT",null,null,null,null,null,null,null,null,null,null,null,null,null,null,"MADN","None"]
[null,null,null,"Non-Registering/Forwarding",null,null,null,null,null,null,null,null,"Aastra / Mitel 6735i",null,null,null,null,null,null,null,null,null,null,"DE",null,null,null,null,null,null,null,null,null,null,null,null,null,null,"MLHG","None"]
[null,null,null,"Forked",null,null,null,null,null,null,null,null,"Aastra / Mitel 6737i",null,null,null,null,null,null,null,null,null,null,"FL",null,null,null,null,null,null,null,null,null,null,null,null,null,null,"Non-Registering/Forwarding","None"]
[null,null,null,"SIP Trunking - Config Pilot",null,null,null,null,null,null,null,null,"Aastra / Mitel 6863i",null,null,null,null,null,null,null,null,null,null,"GA",null,null,null,null,null,null,null,null,null,null,null,null,null,null,"Forked","CommPortal"]
[null,null,null,"SIP Trunking - Registering Pilot",null,null,null,null,null,null,null,null,"Aastra / Mitel 6865i",null,null,null,null,null,null,null,null,null,null,"HI",null,null,null,null,null,null,null,null,null,null,null,null,null,null,"SIP Trunking - Config Pilot","None"]
[null,null,null,"SIP Trunking - DID",null,null,null,null,null,null,null,null,"Aastra / Mitel 6867i",null,null,null,null,null,null,null,null,null,null,"ID",null,null,null,null,null,null,null,null,null,null,null,null,null,null,"SIP Trunking - Registering Pilot","None"]
[null,null,null,"Other",null,null,null,null,null,null,null,null,"Aastra / Mitel 6869i",null,null,null,null,null,null,null,null,null,null,"IL",null,null,null,null,null,null,null,null,null,null,null,null,null,null,"SIP Trunking - DID","None"]
[null,null,null,"Temporary Forward-To",null,null,null,null,null,null,null,null,"AudioCodes MP112",null,null,null,null,null,null,null,null,null,null,"IN",null,null,null,null,null,null,null,null,null,null,null,null,null,null,"Other","None"]
[null,null,null,"ICM",null,null,null,null,null,null,null,null,"AudioCodes MP114",null,null,null,null,null,null,null,null,null,null,"IA",null,null,null,null,null,null,null,null,null,null,null,null,null,null,"Temporary Forward-To","None"]
[null,null,null,"Conf Bridge",null,null,null,null,null,null,null,null,"AudioCodes MP118",null,null,null,null,null,null,null,null,null,null,"KS",null,null,null,null,null,null,null,null,null,null,null,null,null,null,"ICM","CommPortal No VM"]
[null,null,null,"Easy Attendant",null,null,null,null,null,null,null,null,"AudioCodes MP124",null,null,null,null,null,null,null,null,null,null,"KY",null,null,null,null,null,null,null,null,null,null,null,null,null,null,"Conf Bridge","None"]
[null,null,null,"Virtual VM",null,null,null,null,null,null,null,null,"Cisco SPA112",null,null,null,null,null,null,null,null,null,null,"LA",null,null,null,null,null,null,null,null,null,null,null,null,null,null,"Easy Attendant","CommPortal No VM"]
[null,null,null,"User Line No VM",null,null,null,null,null,null,null,null,"Cisco SPA122",null,null,null,null,null,null,null,null,null,null,"ME",null,null,null,null,null,null,null,null,null,null,null,null,null,null,"Virtual VM","CommPortal"]
[null,null,null,null,null,null,null,null,null,null,null,null,"Cisco SPA303",null,null,null,null,null,null,null,null,null,null,"MD",null,null,null,null,null,null,null,null,null,null,null,null,null,null,"User Line No VM","None"]
[null,null,null,null,null,null,null,null,null,null,null,null,"Cisco SPA502G",null,null,null,null,null,null,null,null,null,null,"MA"]
[null,null,null,null,null,null,null,null,null,null,null,null,"Cisco SPA504G",null,null,null,null,null,null,null,null,null,null,"MI"]
[null,null,null,null,null,null,null,null,null,null,null,null,"Cisco SPA508G",null,null,null,null,null,null,null,null,null,null,"MN"]
[null,null,null,null,null,null,null,null,null,null,null,null,"Cisco SPA509G",null,null,null,null,null,null,null,null,null,null,"MS"]
[null,null,null,null,null,null,null,null,null,null,null,null,"Cisco SPA512G",null,null,null,null,null,null,null,null,null,null,"MO"]
[null,null,null,null,null,null,null,null,null,null,null,null,"Cisco SPA514G",null,null,null,null,null,null,null,null,null,null,"MT"]
[null,null,null,null,null,null,null,null,null,null,null,null,"Cisco SPA525G",null,null,null,null,null,null,null,null,null,null,"NE"]
[null,null,null,null,null,null,null,null,null,null,null,null,"Epygi IP-PBX",null,null,null,null,null,null,null,null,null,null,"NV"]
[null,null,null,null,null,null,null,null,null,null,null,null,"Grandstream DP715",null,null,null,null,null,null,null,null,null,null,"NH"]
[null,null,null,null,null,null,null,null,null,null,null,null,"Grandstream GAC2500",null,null,null,null,null,null,null,null,null,null,"NJ"]
[null,null,null,null,null,null,null,null,null,null,null,null,"Grandstream GXP1160",null,null,null,null,null,null,null,null,null,null,"NM"]
[null,null,null,null,null,null,null,null,null,null,null,null,"Grandstream GXP1165",null,null,null,null,null,null,null,null,null,null,"NY"]
[null,null,null,null,null,null,null,null,null,null,null,null,"Grandstream GXP1400",null,null,null,null,null,null,null,null,null,null,"NC"]
[null,null,null,null,null,null,null,null,null,null,null,null,"Grandstream GXP1405",null,null,null,null,null,null,null,null,null,null,"ND"]
[null,null,null,null,null,null,null,null,null,null,null,null,"Grandstream GXP1450",null,null,null,null,null,null,null,null,null,null,"OH"]
[null,null,null,null,null,null,null,null,null,null,null,null,"Grandstream GXP1610",null,null,null,null,null,null,null,null,null,null,"OK"]
[null,null,null,null,null,null,null,null,null,null,null,null,"Grandstream GXP1615",null,null,null,null,null,null,null,null,null,null,"OR"]
[null,null,null,null,null,null,null,null,null,null,null,null,"Grandstream GXP1620",null,null,null,null,null,null,null,null,null,null,"PA"]
[null,null,null,null,null,null,null,null,null,null,null,null,"Grandstream GXP1625",null,null,null,null,null,null,null,null,null,null,"RI"]
[null,null,null,null,null,null,null,null,null,null,null,null,"Grandstream GXP1628",null,null,null,null,null,null,null,null,null,null,"SC"]
[null,null,null,null,null,null,null,null,null,null,null,null,"Grandstream GXP1630",null,null,null,null,null,null,null,null,null,null,"SD"]
[null,null,null,null,null,null,null,null,null,null,null,null,"Grandstream GXP1760",null,null,null,null,null,null,null,null,null,null,"TN"]
[null,null,null,null,null,null,null,null,null,null,null,null,"Grandstream GXP1780",null,null,null,null,null,null,null,null,null,null,"TX"]
[null,null,null,null,null,null,null,null,null,null,null,null,"Grandstream GXP1782",null,null,null,null,null,null,null,null,null,null,"UT"]
[null,null,null,null,null,null,null,null,null,null,null,null,"Grandstream GXP2100",null,null,null,null,null,null,null,null,null,null,"VT"]
[null,null,null,null,null,null,null,null,null,null,null,null,"Grandstream GXP2110",null,null,null,null,null,null,null,null,null,null,"VA"]
[null,null,null,null,null,null,null,null,null,null,null,null,"Grandstream GXP2120",null,null,null,null,null,null,null,null,null,null,"WA"]
[null,null,null,null,null,null,null,null,null,null,null,null,"Grandstream GXP2124",null,null,null,null,null,null,null,null,null,null,"WV"]
[null,null,null,null,null,null,null,null,null,null,null,null,"Grandstream GXP2130",null,null,null,null,null,null,null,null,null,null,"WI"]
[null,null,null,null,null,null,null,null,null,null,null,null,"Grandstream GXP2140",null,null,null,null,null,null,null,null,null,null,"WY"]
[null,null,null,null,null,null,null,null,null,null,null,null,"Grandstream GXP2160"]
[null,null,null,null,null,null,null,null,null,null,null,null,"Grandstream HT701"]
[null,null,null,null,null,null,null,null,null,null,null,null,"Grandstream HT702"]
[null,null,null,null,null,null,null,null,null,null,null,null,"Grandstream HT704"]
[null,null,null,null,null,null,null,null,null,null,null,null,"LG Ericson IP8815"]
[null,null,null,null,null,null,null,null,null,null,null,null,"LG Ericson IP8830"]
[null,null,null,null,null,null,null,null,null,null,null,null,"LG Ericson IP8840"]
[null,null,null,null,null,null,null,null,null,null,null,null,"Linksys PAP2T"]
[null,null,null,null,null,null,null,null,null,null,null,null,"Linksys SPA2100"]
[null,null,null,null,null,null,null,null,null,null,null,null,"Linksys SPA2102"]
[null,null,null,null,null,null,null,null,null,null,null,null,"Linksys SPA3102"]
[null,null,null,null,null,null,null,null,null,null,null,null,"Linksys SPA8000"]
[null,null,null,null,null,null,null,null,null,null,null,null,"Linksys SPA8800"]
[null,null,null,null,null,null,null,null,null,null,null,null,"Mitel IP-PBX"]
[null,null,null,null,null,null,null,null,null,null,null,null,"Obihai OBi300"]
[null,null,null,null,null,null,null,null,null,null,null,null,"Obihai OBi302"]
[null,null,null,null,null,null,null,null,null,null,null,null,"Panasonic KXTGP500"]
[null,null,null,null,null,null,null,null,null,null,null,null,"Panasonic KXTGP550"]
[null,null,null,null,null,null,null,null,null,null,null,null,"Panasonic KXUTG200B"]
[null,null,null,null,null,null,null,null,null,null,null,null,"Panasonic KXUTG300B"]
[null,null,null,null,null,null,null,null,null,null,null,null,"Polycom IP330"]
[null,null,null,null,null,null,null,null,null,null,null,null,"Polycom IP331"]
[null,null,null,null,null,null,null,null,null,null,null,null,"Polycom IP335"]
[null,null,null,null,null,null,null,null,null,null,null,null,"Polycom IP450"]
[null,null,null,null,null,null,null,null,null,null,null,null,"Polycom IP550"]
[null,null,null,null,null,null,null,null,null,null,null,null,"Polycom IP601"]
[null,null,null,null,null,null,null,null,null,null,null,null,"Polycom IP650"]
[null,null,null,null,null,null,null,null,null,null,null,null,"Polycom IP670"]
[null,null,null,null,null,null,null,null,null,null,null,null,"Polycom SoundStation Duo"]
[null,null,null,null,null,null,null,null,null,null,null,null,"Polycom SoundStation IP4000"]
[null,null,null,null,null,null,null,null,null,null,null,null,"Polycom SoundStation IP5000"]
[null,null,null,null,null,null,null,null,null,null,null,null,"Polycom SoundStation IP6000"]
[null,null,null,null,null,null,null,null,null,null,null,null,"Polycom SoundStation IP7000"]
[null,null,null,null,null,null,null,null,null,null,null,null,"Polycom VVX101"]
[null,null,null,null,null,null,null,null,null,null,null,null,"Polycom VVX1500"]
[null,null,null,null,null,null,null,null,null,null,null,null,"Polycom VVX201"]
[null,null,null,null,null,null,null,null,null,null,null,null,"Polycom VVX300"]
[null,null,null,null,null,null,null,null,null,null,null,null,"Polycom VVX301"]
[null,null,null,null,null,null,null,null,null,null,null,null,"Polycom VVX310"]
[null,null,null,null,null,null,null,null,null,null,null,null,"Polycom VVX311"]
[null,null,null,null,null,null,null,null,null,null,null,null,"Polycom VVX400"]
[null,null,null,null,null,null,null,null,null,null,null,null,"Polycom VVX401"]
[null,null,null,null,null,null,null,null,null,null,null,null,"Polycom VVX410"]
[null,null,null,null,null,null,null,null,null,null,null,null,"Polycom VVX411"]
[null,null,null,null,null,null,null,null,null,null,null,null,"Polycom VVX500"]
[null,null,null,null,null,null,null,null,null,null,null,null,"Polycom VVX501"]
[null,null,null,null,null,null,null,null,null,null,null,null,"Polycom VVX600"]
[null,null,null,null,null,null,null,null,null,null,null,null,"Polycom VVX601"]
[null,null,null,null,null,null,null,null,null,null,null,null,"Snom 300"]
[null,null,null,null,null,null,null,null,null,null,null,null,"Snom 320"]
[null,null,null,null,null,null,null,null,null,null,null,null,"Snom 360"]
[null,null,null,null,null,null,null,null,null,null,null,null,"Snom 370"]
[null,null,null,null,null,null,null,null,null,null,null,null,"Snom 710"]
[null,null,null,null,null,null,null,null,null,null,null,null,"Snom 720"]
[null,null,null,null,null,null,null,null,null,null,null,null,"Snom 760"]
[null,null,null,null,null,null,null,null,null,null,null,null,"VOP Voice Operator Panel"]
[null,null,null,null,null,null,null,null,null,null,null,null,"Vodia IP-PBX"]
[null,null,null,null,null,null,null,null,null,null,null,null,"Vtech VCS754"]
[null,null,null,null,null,null,null,null,null,null,null,null,"Vtech VSP600"]
[null,null,null,null,null,null,null,null,null,null,null,null,"Vtech VSP715"]
[null,null,null,null,null,null,null,null,null,null,null,null,"Vtech VSP725"]
[null,null,null,null,null,null,null,null,null,null,null,null,"Vtech VSP735"]
[null,null,null,null,null,null,null,null,null,null,null,null,"Yealink CP860"]
[null,null,null,null,null,null,null,null,null,null,null,null,"Yealink CP920"]
[null,null,null,null,null,null,null,null,null,null,null,null,"Yealink CP960"]
[null,null,null,null,null,null,null,null,null,null,null,null,"Yealink T19P"]
[null,null,null,null,null,null,null,null,null,null,null,null,"Yealink T19P_E2"]
[null,null,null,null,null,null,null,null,null,null,null,null,"Yealink T20P"]
[null,null,null,null,null,null,null,null,null,null,null,null,"Yealink T21P"]
[null,null,null,null,null,null,null,null,null,null,null,null,"Yealink T21P_E2"]
[null,null,null,null,null,null,null,null,null,null,null,null,"Yealink T22P"]
[null,null,null,null,null,null,null,null,null,null,null,null,"Yealink T23P/G"]
[null,null,null,null,null,null,null,null,null,null,null,null,"Yealink T26P"]
[null,null,null,null,null,null,null,null,null,null,null,null,"Yealink T27G"]
[null,null,null,null,null,null,null,null,null,null,null,null,"Yealink T28P"]
[null,null,null,null,null,null,null,null,null,null,null,null,"Yealink T29G"]
[null,null,null,null,null,null,null,null,null,null,null,null,"Yealink T40G"]
[null,null,null,null,null,null,null,null,null,null,null,null,"Yealink T40P"]
[null,null,null,null,null,null,null,null,null,null,null,null,"Yealink T41P"]
[null,null,null,null,null,null,null,null,null,null,null,null,"Yealink T41S"]
[null,null,null,null,null,null,null,null,null,null,null,null,"Yealink T42G"]
[null,null,null,null,null,null,null,null,null,null,null,null,"Yealink T42S"]
[null,null,null,null,null,null,null,null,null,null,null,null,"Yealink T46G"]
[null,null,null,null,null,null,null,null,null,null,null,null,"Yealink T46S"]
[null,null,null,null,null,null,null,null,null,null,null,null,"Yealink T48G"]
[null,null,null,null,null,null,null,null,null,null,null,null,"Yealink T48S"]
[null,null,null,null,null,null,null,null,null,null,null,null,"Yealink T52S"]
[null,null,null,null,null,null,null,null,null,null,null,null,"Yealink T54S"]
[null,null,null,null,null,null,null,null,null,null,null,null,"Yealink T56A"]
[null,null,null,null,null,null,null,null,null,null,null,null,"Yealink T58V"]
[null,null,null,null,null,null,null,null,null,null,null,null,"Yealink W52P"]
[null,null,null,null,null,null,null,null,null,null,null,null,"Yealink W56P"]
[null,null,null,null,null,null,null,null,null,null,null,null,"Yealink W60P"]
[null,null,null,null,null,null,null,null,null,null,null,null,"OTHER Specify in notes"]